Workbook

Sheet Sheet1
A1: miRNA_symbol | B1: f000_S03_E01 | C1: f000_S09_E02 | D1: f000_S11_E03 | E1: f000_S11_E01 | F1: f000_S12_E02 | G1: f000_S12_E01 | H1: f010_S02_E01 | I1: f010_S04_E03 | J1: f010_S04_E01 | K1: f010_S07_E01 | L1: f010_S08_E01 | M1: f010_S08_E02 | N1: f1000_S01_E01 | O1: f1000_S01_E02 | P1: f1000_S05_E01 | Q1: f1000_S05_E02 | R1: f1000_S06_E02 | S1: f1000_S10_E02 | T1: m000_S03_E02 | U1: m000_S09_E01 | V1: m000_S11_E02 | W1: m000_S12_E03 | X1: m000_S12_E04 | Y1: m000_S12_E05 | Z1: m010_S02_E03 | AA1: m010_S02_E02 | AB1: m010_S04_E02 | AC1: m010_S04_E04 | AD1: m010_S07_E02 | AE1: m010_S07_E03 | AF1: m1000_S01_E03 | AG1: m1000_S05_E03 | AH1: m1000_S06_E01 | AI1: m1000_S06_E03 | AJ1: m1000_S10_E01 | AK1: m1000_S10_E03 | AL1: count_sum | AM1: percent | AN1: count_percent | AO1: rank | AP1: rpm | AQ1: log2 rpm
A2: mir-21 | B2: 63885 | C2: 274291 | D2: 104319 | E2: 207402 | F2: 310377 | G2: 280371 | H2: 421638 | I2: 171111 | J2: 138156 | K2: 214121 | L2: 441548 | M2: 464561 | N2: 101001 | O2: 194962 | P2: 310347 | Q2: 271988 | R2: 232632 | S2: 252472 | T2: 80383 | U2: 214340 | V2: 78873 | W2: 140414 | X2: 213628 | Y2: 222372 | Z2: 302114 | AA2: 228829 | AB2: 78718 | AC2: 152355 | AD2: 172983 | AE2: 300439 | AF2: 116896 | AG2: 303172 | AH2: 315419 | AI2: 138632 | AJ2: 247224 | AK2: 176305 | AL2: 7938278 | AM2: 22.17636251 | AN2: 22.17636251 | AO2: 1 | AP2: =(AL2/SUM(AL$2:AL$270)*1000000) -> 221763.6251 | AQ2: =LOG(AP2, 2) -> 17.75866322
A3: mir-371-5p | B3: 117628 | C3: 233810 | D3: 145101 | E3: 166343 | F3: 194451 | G3: 279949 | H3: 175786 | I3: 285162 | J3: 159058 | K3: 109067 | L3: 244416 | M3: 350708 | N3: 78387 | O3: 215833 | P3: 164871 | Q3: 141674 | R3: 124600 | S3: 142336 | T3: 101439 | U3: 132705 | V3: 124601 | W3: 133102 | X3: 158834 | Y3: 182757 | Z3: 123353 | AA3: 79719 | AB3: 79978 | AC3: 158432 | AD3: 139637 | AE3: 217209 | AF3: 128890 | AG3: 230987 | AH3: 287359 | AI3: 88971 | AJ3: 143443 | AK3: 117199 | AL3: 5957795 | AM3: 16.64368792 | AN3: 38.82005043 | AO3: 2 | AP3: =(AL3/SUM(AL$2:AL$270)*1000000) -> 166436.8792 | AQ3: =LOG(AP3, 2) -> 17.34461562
A4: mir-302b | B4: 57610 | C4: 106857 | D4: 77256 | E4: 45816 | F4: 106359 | G4: 85349 | H4: 62870 | I4: 93734 | J4: 60102 | K4: 48863 | L4: 121946 | M4: 199968 | N4: 25711 | O4: 66561 | P4: 156594 | Q4: 73377 | R4: 32629 | S4: 84998 | T4: 36212 | U4: 119333 | V4: 26350 | W4: 61079 | X4: 31926 | Y4: 65608 | Z4: 70264 | AA4: 49704 | AB4: 42610 | AC4: 48291 | AD4: 50980 | AE4: 71029 | AF4: 34867 | AG4: 131559 | AH4: 101410 | AI4: 29241 | AJ4: 79915 | AK4: 41833 | AL4: 2598811 | AM4: 7.260034837 | AN4: 46.08008527 | AO4: 3 | AP4: =(AL4/SUM(AL$2:AL$270)*1000000) -> 72600.34837 | AQ4: =LOG(AP4, 2) -> 16.14768885
A5: mir-378 | B5: 19533 | C5: 74718 | D5: 31803 | E5: 55458 | F5: 75416 | G5: 61243 | H5: 66861 | I5: 58894 | J5: 46652 | K5: 45606 | L5: 91248 | M5: 133289 | N5: 25316 | O5: 52182 | P5: 89223 | Q5: 66138 | R5: 47003 | S5: 61756 | T5: 24816 | U5: 45630 | V5: 28920 | W5: 33533 | X5: 47406 | Y5: 46669 | Z5: 58261 | AA5: 43289 | AB5: 25665 | AC5: 48953 | AD5: 39587 | AE5: 65467 | AF5: 33524 | AG5: 79048 | AH5: 62802 | AI5: 29344 | AJ5: 68939 | AK5: 40622 | AL5: 1924814 | AM5: 5.377157744 | AN5: 51.45724301 | AO5: 4 | AP5: =(AL5/SUM(AL$2:AL$270)*1000000) -> 53771.57744 | AQ5: =LOG(AP5, 2) -> 15.71455617
A6: mir-7 | B6: 13986 | C6: 27298 | D6: 17925 | E6: 45382 | F6: 30813 | G6: 41071 | H6: 56901 | I6: 43933 | J6: 35608 | K6: 25651 | L6: 48804 | M6: 57972 | N6: 15797 | O6: 38557 | P6: 32622 | Q6: 27370 | R6: 43411 | S6: 26603 | T6: 22645 | U6: 26848 | V6: 21791 | W6: 16107 | X6: 28112 | Y6: 25963 | Z6: 36242 | AA6: 26468 | AB6: 16720 | AC6: 39555 | AD6: 31424 | AE6: 49726 | AF6: 22921 | AG6: 33556 | AH6: 53998 | AI6: 26338 | AJ6: 34756 | AK6: 26947 | AL6: 1169821 | AM6: 3.268010337 | AN6: 54.72525335 | AO6: 5 | AP6: =(AL6/SUM(AL$2:AL$270)*1000000) -> 32680.10337 | AQ6: =LOG(AP6, 2) -> 14.99612493
A7: mir-200b | B7: 8777 | C7: 47136 | D7: 13087 | E7: 25081 | F7: 32551 | G7: 44516 | H7: 42153 | I7: 16592 | J7: 22989 | K7: 19804 | L7: 60445 | M7: 76788 | N7: 14889 | O7: 28904 | P7: 48792 | Q7: 37003 | R7: 27887 | S7: 18849 | T7: 7047 | U7: 36514 | V7: 11629 | W7: 21105 | X7: 19259 | Y7: 19315 | Z7: 29085 | AA7: 28054 | AB7: 10734 | AC7: 13343 | AD7: 13933 | AE7: 28030 | AF7: 16210 | AG7: 40949 | AH7: 71769 | AI7: 14807 | AJ7: 28799 | AK7: 12936 | AL7: 1009761 | AM7: 2.820866941 | AN7: 57.54612029 | AO7: 6 | AP7: =(AL7/SUM(AL$2:AL$270)*1000000) -> 28208.66941 | AQ7: =LOG(AP7, 2) -> 14.783851
A8: mir-30d | B8: 9761 | C8: 30133 | D8: 13680 | E8: 37342 | F8: 24110 | G8: 28004 | H8: 60024 | I8: 29899 | J8: 25622 | K8: 25126 | L8: 48176 | M8: 42526 | N8: 14878 | O8: 28617 | P8: 35657 | Q8: 25519 | R8: 35100 | S8: 24290 | T8: 16169 | U8: 23104 | V8: 21437 | W8: 12054 | X8: 23243 | Y8: 22980 | Z8: 41559 | AA8: 23790 | AB8: 11941 | AC8: 29900 | AD8: 27477 | AE8: 39454 | AF8: 19500 | AG8: 36616 | AH8: 46015 | AI8: 18603 | AJ8: 28364 | AK8: 21243 | AL8: 1001913 | AM8: 2.798942779 | AN8: 60.34506307 | AO8: 7 | AP8: =(AL8/SUM(AL$2:AL$270)*1000000) -> 27989.42779 | AQ8: =LOG(AP8, 2) -> 14.77259437
A9: mir-20a | B9: 9244 | C9: 31052 | D9: 15145 | E9: 24210 | F9: 41500 | G9: 33546 | H9: 40956 | I9: 22091 | J9: 16260 | K9: 29578 | L9: 53154 | M9: 62852 | N9: 11227 | O9: 20733 | P9: 40215 | Q9: 39384 | R9: 25444 | S9: 35633 | T9: 11075 | U9: 29335 | V9: 8725 | W9: 20490 | X9: 24889 | Y9: 25152 | Z9: 39114 | AA9: 30654 | AB9: 12010 | AC9: 19156 | AD9: 21444 | AE9: 32626 | AF9: 12988 | AG9: 42968 | AH9: 34268 | AI9: 15456 | AJ9: 34474 | AK9: 19679 | AL9: 986727 | AM9: 2.756519191 | AN9: 63.10158226 | AO9: 8 | AP9: =(AL9/SUM(AL$2:AL$270)*1000000) -> 27565.19191 | AQ9: =LOG(AP9, 2) -> 14.75056002
A10: mir-302d | B10: 14911 | C10: 39488 | D10: 22902 | E10: 21351 | F10: 30477 | G10: 42467 | H10: 34032 | I10: 45066 | J10: 26351 | K10: 12283 | L10: 37715 | M10: 70442 | N10: 12525 | O10: 29973 | P10: 41014 | Q10: 21521 | R10: 16176 | S10: 21649 | T10: 9284 | U10: 32817 | V10: 10973 | W10: 16941 | X10: 18189 | Y10: 29715 | Z10: 21253 | AA10: 12527 | AB10: 11083 | AC10: 21197 | AD10: 21808 | AE10: 33621 | AF10: 17279 | AG10: 38752 | AH10: 49894 | AI10: 15768 | AJ10: 21024 | AK10: 19930 | AL10: 942398 | AM10: 2.632681757 | AN10: 65.73426402 | AO10: 9 | AP10: =(AL10/SUM(AL$2:AL$270)*1000000) -> 26326.81757 | AQ10: =LOG(AP10, 2) -> 14.68424552
A11: mir-92a | B11: 14182 | C11: 26532 | D11: 22037 | E11: 26456 | F11: 25950 | G11: 39689 | H11: 30329 | I11: 45211 | J11: 27803 | K11: 14790 | L11: 38260 | M11: 42027 | N11: 11600 | O11: 27893 | P11: 27894 | Q11: 17460 | R11: 17723 | S11: 18996 | T11: 12643 | U11: 24140 | V11: 19453 | W11: 19307 | X11: 20540 | Y11: 23996 | Z11: 20612 | AA11: 11695 | AB11: 11166 | AC11: 24498 | AD11: 20836 | AE11: 29403 | AF11: 18929 | AG11: 32668 | AH11: 54800 | AI11: 15101 | AJ11: 21219 | AK11: 16255 | AL11: 872093 | AM11: 2.436277806 | AN11: 68.17054182 | AO11: 10 | AP11: =(AL11/SUM(AL$2:AL$270)*1000000) -> 24362.77806 | AQ11: =LOG(AP11, 2) -> 14.57239103
A12: mir-302a | B12: 12066 | C12: 34904 | D12: 17780 | E12: 18801 | F12: 29347 | G12: 28481 | H12: 28848 | I12: 32388 | J12: 21302 | K12: 13922 | L12: 33518 | M12: 53705 | N12: 10369 | O12: 24707 | P12: 49026 | Q12: 26624 | R12: 15062 | S12: 22454 | T12: 10350 | U12: 27087 | V12: 8967 | W12: 14070 | X12: 14729 | Y12: 20179 | Z12: 21020 | AA12: 15399 | AB12: 11580 | AC12: 17013 | AD12: 18344 | AE12: 26782 | AF12: 13318 | AG12: 34863 | AH12: 30615 | AI12: 10865 | AJ12: 25289 | AK12: 15008 | AL12: 808782 | AM12: 2.259412283 | AN12: 70.4299541 | AO12: 11 | AP12: =(AL12/SUM(AL$2:AL$270)*1000000) -> 22594.12283 | AQ12: =LOG(AP12, 2) -> 14.46365993
A13: mir-128 | B13: 7319 | C13: 19066 | D13: 11441 | E13: 26683 | F13: 13763 | G13: 19074 | H13: 35459 | I13: 19208 | J13: 15241 | K13: 20744 | L13: 25738 | M13: 24139 | N13: 8909 | O13: 19165 | P13: 33307 | Q13: 19280 | R13: 20168 | S13: 17766 | T13: 13016 | U13: 12762 | V13: 14820 | W13: 7580 | X13: 13766 | Y13: 16899 | Z13: 26113 | AA13: 16948 | AB13: 7695 | AC13: 22304 | AD13: 13541 | AE13: 21193 | AF13: 13450 | AG13: 32731 | AH13: 29470 | AI13: 10291 | AJ13: 24203 | AK13: 11912 | AL13: 665164 | AM13: 1.858201236 | AN13: 72.28815534 | AO13: 12 | AP13: =(AL13/SUM(AL$2:AL$270)*1000000) -> 18582.01236 | AQ13: =LOG(AP13, 2) -> 14.18161913
A14: mir-200a | B14: 3629 | C14: 20287 | D14: 7402 | E14: 12285 | F14: 17757 | G14: 32208 | H14: 26221 | I14: 10494 | J14: 11296 | K14: 10037 | L14: 32311 | M14: 46773 | N14: 10060 | O14: 15219 | P14: 18170 | Q14: 14234 | R14: 14775 | S14: 11062 | T14: 2161 | U14: 24004 | V14: 4732 | W14: 11626 | X14: 13593 | Y14: 14648 | Z14: 17660 | AA14: 12814 | AB14: 4707 | AC14: 8219 | AD14: 8832 | AE14: 19471 | AF14: 11336 | AG14: 22539 | AH14: 52092 | AI14: 9472 | AJ14: 11635 | AK14: 9530 | AL14: 573291 | AM14: 1.601544949 | AN14: 73.88970029 | AO14: 13 | AP14: =(AL14/SUM(AL$2:AL$270)*1000000) -> 16015.44949 | AQ14: =LOG(AP14, 2) -> 13.96717667
A15: mir-2033p | B15: 5672 | C15: 15693 | D15: 9046 | E15: 12091 | F15: 21217 | G15: 20589 | H15: 17170 | I15: 14006 | J15: 9321 | K15: 13751 | L15: 23561 | M15: 28986 | N15: 5458 | O15: 14041 | P15: 25351 | Q15: 16227 | R15: 11926 | S15: 15613 | T15: 5350 | U15: 14825 | V15: 6534 | W15: 12119 | X15: 12481 | Y15: 16457 | Z15: 16827 | AA15: 10558 | AB15: 7402 | AC15: 12290 | AD15: 11348 | AE15: 19755 | AF15: 7432 | AG15: 23213 | AH15: 18489 | AI15: 8089 | AJ15: 14500 | AK15: 9635 | AL15: 507023 | AM15: 1.416418756 | AN15: 75.30611905 | AO15: 14 | AP15: =(AL15/SUM(AL$2:AL$270)*1000000) -> 14164.18756 | AQ15: =LOG(AP15, 2) -> 13.78996023
A16: mir-1483p | B16: 4234 | C16: 14964 | D16: 6518 | E16: 12668 | F16: 13778 | G16: 16936 | H16: 22623 | I16: 15676 | J16: 10485 | K16: 9260 | L16: 22571 | M16: 33661 | N16: 7094 | O16: 13577 | P16: 17223 | Q16: 12358 | R16: 14866 | S16: 11787 | T16: 4393 | U16: 10400 | V16: 4862 | W16: 6668 | X16: 13290 | Y16: 14424 | Z16: 12601 | AA16: 12834 | AB16: 4871 | AC16: 9328 | AD16: 13820 | AE16: 22221 | AF16: 9901 | AG16: 18578 | AH16: 24713 | AI16: 8132 | AJ16: 13661 | AK16: 10211 | AL16: 475187 | AM16: 1.32748175 | AN16: 76.6336008 | AO16: 15 | AP16: =(AL16/SUM(AL$2:AL$270)*1000000) -> 13274.8175 | AQ16: =LOG(AP16, 2) -> 13.69640441
A17: mir-26a | B17: 4025 | C17: 17974 | D17: 6579 | E17: 10533 | F17: 8770 | G17: 12647 | H17: 37048 | I17: 12993 | J17: 9741 | K17: 6263 | L17: 19993 | M17: 19958 | N17: 5616 | O17: 11959 | P17: 11183 | Q17: 5505 | R17: 10633 | S17: 7656 | T17: 3036 | U17: 10710 | V17: 5392 | W17: 5209 | X17: 6231 | Y17: 9150 | Z17: 18632 | AA17: 7007 | AB17: 3301 | AC17: 8018 | AD17: 8481 | AE17: 13705 | AF17: 8345 | AG17: 12478 | AH17: 27573 | AI17: 8743 | AJ17: 6482 | AK17: 10923 | AL17: 392492 | AM17: 1.096465112 | AN17: 77.73006591 | AO17: 16 | AP17: =(AL17/SUM(AL$2:AL$270)*1000000) -> 10964.65112 | AQ17: =LOG(AP17, 2) -> 13.42057229
A18: mir-3025p | B18: 5906 | C18: 9472 | D18: 7950 | E18: 12192 | F18: 11941 | G18: 14465 | H18: 16583 | I18: 15842 | J18: 10641 | K18: 5707 | L18: 13731 | M18: 12390 | N18: 6520 | O18: 14754 | P18: 17719 | Q18: 9716 | R18: 8268 | S18: 11137 | T18: 5705 | U18: 9969 | V18: 5589 | W18: 6362 | X18: 8211 | Y18: 10826 | Z18: 9322 | AA18: 6743 | AB18: 5162 | AC18: 8731 | AD18: 8949 | AE18: 12296 | AF18: 9159 | AG18: 16333 | AH18: 13598 | AI18: 5416 | AJ18: 13228 | AK18: 8756 | AL18: 369289 | AM18: 1.031645243 | AN18: 78.76171115 | AO18: 17 | AP18: =(AL18/SUM(AL$2:AL$270)*1000000) -> 10316.45243 | AQ18: =LOG(AP18, 2) -> 13.33265933
A19: mir-22-3p | B19: 3860 | C19: 6666 | D19: 6965 | E19: 9293 | F19: 12839 | G19: 17472 | H19: 13306 | I19: 10889 | J19: 7028 | K19: 7197 | L19: 16146 | M19: 21086 | N19: 5385 | O19: 10208 | P19: 8279 | Q19: 6363 | R19: 8896 | S19: 9281 | T19: 3155 | U19: 9293 | V19: 4459 | W19: 6651 | X19: 10913 | Y19: 12970 | Z19: 10110 | AA19: 5955 | AB19: 3347 | AC19: 9350 | AD19: 7893 | AE19: 15137 | AF19: 7106 | AG19: 12463 | AH19: 16994 | AI19: 5919 | AJ19: 7571 | AK19: 8850 | AL19: 339295 | AM19: 0.9478540455 | AN19: 79.7095652 | AO19: 18 | AP19: =(AL19/SUM(AL$2:AL$270)*1000000) -> 9478.540455 | AQ19: =LOG(AP19, 2) -> 13.21044921
A20: mir-105p | B20: 765 | C20: 23477 | D20: 3687 | E20: 9203 | F20: 6040 | G20: 4504 | H20: 41411 | I20: 4832 | J20: 4928 | K20: 7431 | L20: 20409 | M20: 11684 | N20: 5615 | O20: 8984 | P20: 4565 | Q20: 3351 | R20: 16808 | S20: 5592 | T20: 1124 | U20: 7664 | V20: 3421 | W20: 2960 | X20: 4105 | Y20: 4607 | Z20: 22097 | AA20: 12535 | AB20: 1690 | AC20: 3276 | AD20: 7252 | AE20: 11229 | AF20: 7088 | AG20: 6089 | AH20: 27865 | AI20: 8980 | AJ20: 5800 | AK20: 12082 | AL20: 333150 | AM20: 0.930687382 | AN20: 80.64025258 | AO20: 19 | AP20: =(AL20/SUM(AL$2:AL$270)*1000000) -> 9306.87382 | AQ20: =LOG(AP20, 2) -> 13.18408093
A21: mir-1307 | B21: 4555 | C21: 13783 | D21: 6302 | E21: 9218 | F21: 10069 | G21: 8481 | H21: 10825 | I21: 9687 | J21: 8808 | K21: 8894 | L21: 16250 | M21: 20577 | N21: 4245 | O21: 9261 | P21: 12916 | Q21: 10088 | R21: 7709 | S21: 9550 | T21: 7613 | U21: 7130 | V21: 6714 | W21: 4987 | X21: 7001 | Y21: 7657 | Z21: 12391 | AA21: 8839 | AB21: 6207 | AC21: 10002 | AD21: 7324 | AE21: 9035 | AF21: 5941 | AG21: 12780 | AH21: 10756 | AI21: 3864 | AJ21: 13465 | AK21: 5509 | AL21: 328433 | AM21: 0.9175099773 | AN21: 81.55776255 | AO21: 20 | AP21: =(AL21/SUM(AL$2:AL$270)*1000000) -> 9175.099773 | AQ21: =LOG(AP21, 2) -> 13.16350813
A22: mir-423-3p | B22: 4803 | C22: 8594 | D22: 6011 | E22: 11743 | F22: 8626 | G22: 9457 | H22: 13720 | I22: 12262 | J22: 9017 | K22: 8030 | L22: 16242 | M22: 13460 | N22: 4609 | O22: 8812 | P22: 11644 | Q22: 7499 | R22: 9328 | S22: 9213 | T22: 6150 | U22: 7910 | V22: 6927 | W22: 4904 | X22: 6483 | Y22: 8606 | Z22: 11637 | AA22: 8090 | AB22: 4474 | AC22: 11928 | AD22: 8948 | AE22: 10954 | AF22: 6669 | AG22: 13283 | AH22: 16348 | AI22: 4954 | AJ22: 9982 | AK22: 6390 | AL22: 327707 | AM22: 0.9154818247 | AN22: 82.47324438 | AO22: 21 | AP22: =(AL22/SUM(AL$2:AL$270)*1000000) -> 9154.818247 | AQ22: =LOG(AP22, 2) -> 13.16031553
A23: mir-191 | B23: 7061 | C23: 13760 | D23: 8325 | E23: 6950 | F23: 11248 | G23: 13038 | H23: 10062 | I23: 11279 | J23: 7887 | K23: 5988 | L23: 16047 | M23: 21857 | N23: 3502 | O23: 9140 | P23: 9733 | Q23: 4753 | R23: 5479 | S23: 7484 | T23: 5727 | U23: 11002 | V23: 5693 | W23: 7708 | X23: 4938 | Y23: 7773 | Z23: 9267 | AA23: 4699 | AB23: 3741 | AC23: 6597 | AD23: 6643 | AE23: 9817 | AF23: 5588 | AG23: 9321 | AH23: 19930 | AI23: 5973 | AJ23: 7172 | AK23: 5625 | AL23: 310807 | AM23: 0.8682700079 | AN23: 83.34151439 | AO23: 22 | AP23: =(AL23/SUM(AL$2:AL$270)*1000000) -> 8682.700079 | AQ23: =LOG(AP23, 2) -> 13.08392804
A24: mir-30e-5p | B24: 3478 | C24: 9447 | D24: 5702 | E24: 7715 | F24: 10321 | G24: 16471 | H24: 10288 | I24: 11566 | J24: 7371 | K24: 4116 | L24: 13380 | M24: 16915 | N24: 4012 | O24: 8521 | P24: 7758 | Q24: 5014 | R24: 5752 | S24: 7622 | T24: 2491 | U24: 7886 | V24: 4528 | W24: 6356 | X24: 7558 | Y24: 11217 | Z24: 7048 | AA24: 3303 | AB24: 3092 | AC24: 7743 | AD24: 6590 | AE24: 10377 | AF24: 6211 | AG24: 10074 | AH24: 16590 | AI24: 6053 | AJ24: 5364 | AK24: 7651 | AL24: 285581 | AM24: 0.797798689 | AN24: 84.13931308 | AO24: 23 | AP24: =(AL24/SUM(AL$2:AL$270)*1000000) -> 7977.98689 | AQ24: =LOG(AP24, 2) -> 12.96180904
A25: le7i | B25: 726 | C25: 17311 | D25: 3017 | E25: 7195 | F25: 5947 | G25: 5695 | H25: 28617 | I25: 4509 | J25: 4009 | K25: 4812 | L25: 16770 | M25: 9248 | N25: 6739 | O25: 8661 | P25: 2810 | Q25: 1452 | R25: 13512 | S25: 4088 | T25: 661 | U25: 6563 | V25: 2219 | W25: 3341 | X25: 3754 | Y25: 6220 | Z25: 13127 | AA25: 8073 | AB25: 1120 | AC25: 2745 | AD25: 5787 | AE25: 9593 | AF25: 7415 | AG25: 4503 | AH25: 31170 | AI25: 9513 | AJ25: 4184 | AK25: 15079 | AL25: 280185 | AM25: 0.7827244308 | AN25: 84.92203751 | AO25: 24 | AP25: =(AL25/SUM(AL$2:AL$270)*1000000) -> 7827.244308 | AQ25: =LOG(AP25, 2) -> 12.93428876
A26: mir-10b | B26: 2233 | C26: 8422 | D26: 4854 | E26: 7471 | F26: 10436 | G26: 10524 | H26: 9602 | I26: 7962 | J26: 5183 | K26: 7363 | L26: 10658 | M26: 12923 | N26: 3102 | O26: 8222 | P26: 17154 | Q26: 12280 | R26: 8164 | S26: 7438 | T26: 4200 | U26: 6288 | V26: 4241 | W26: 5003 | X26: 7973 | Y26: 7537 | Z26: 7071 | AA26: 6100 | AB26: 2748 | AC26: 5759 | AD26: 6895 | AE26: 10974 | AF26: 4851 | AG26: 14983 | AH26: 9994 | AI26: 4597 | AJ26: 10086 | AK26: 4447 | AL26: 277738 | AM26: 0.775888495 | AN26: 85.697926 | AO26: 25 | AP26: =(AL26/SUM(AL$2:AL$270)*1000000) -> 7758.88495 | AQ26: =LOG(AP26, 2) -> 12.92163362
A27: mir-7-1 | B27: 3216 | C27: 6253 | D27: 4014 | E27: 9857 | F27: 7118 | G27: 9487 | H27: 13204 | I27: 9960 | J27: 8103 | K27: 5523 | L27: 11349 | M27: 13432 | N27: 3465 | O27: 8874 | P27: 7572 | Q27: 5879 | R27: 9124 | S27: 5626 | T27: 4793 | U27: 5938 | V27: 5007 | W27: 3747 | X27: 6142 | Y27: 6031 | Z27: 7562 | AA27: 5774 | AB27: 3440 | AC27: 8726 | AD27: 6817 | AE27: 11666 | AF27: 4755 | AG27: 7248 | AH27: 12503 | AI27: 5738 | AJ27: 7376 | AK27: 5904 | AL27: 261223 | AM27: 0.7297522137 | AN27: 86.42767822 | AO27: 26 | AP27: =(AL27/SUM(AL$2:AL$270)*1000000) -> 7297.522137 | AQ27: =LOG(AP27, 2) -> 12.83319097
A28: mir-305p | B28: 1866 | C28: 12446 | D28: 4268 | E28: 7213 | F28: 5370 | G28: 6917 | H28: 25627 | I28: 8830 | J28: 5588 | K28: 4324 | L28: 15966 | M28: 16788 | N28: 3508 | O28: 6252 | P28: 5963 | Q28: 3489 | R28: 7851 | S28: 4599 | T28: 1468 | U28: 8171 | V28: 3488 | W28: 3129 | X28: 3809 | Y28: 4377 | Z28: 14297 | AA28: 5708 | AB28: 2143 | AC28: 4410 | AD28: 5914 | AE28: 9158 | AF28: 4392 | AG28: 6767 | AH28: 17359 | AI28: 5620 | AJ28: 4673 | AK28: 5632 | AL28: 257380 | AM28: 0.7190164142 | AN28: 87.14669463 | AO28: 27 | AP28: =(AL28/SUM(AL$2:AL$270)*1000000) -> 7190.164142 | AQ28: =LOG(AP28, 2) -> 12.81180899
A29: mir-2003p | B29: 1534 | C29: 6733 | D29: 2229 | E29: 6560 | F29: 5613 | G29: 11346 | H29: 9409 | I29: 4095 | J29: 5207 | K29: 4258 | L29: 11597 | M29: 13209 | N29: 3771 | O29: 6128 | P29: 8941 | Q29: 7228 | R29: 7485 | S29: 3775 | T29: 1437 | U29: 6561 | V29: 2454 | W29: 3430 | X29: 5317 | Y29: 4654 | Z29: 6095 | AA29: 5814 | AB29: 2185 | AC29: 3865 | AD29: 3559 | AE29: 6962 | AF29: 3852 | AG29: 9198 | AH29: 17979 | AI29: 3505 | AJ29: 5841 | AK29: 2781 | AL29: 214607 | AM29: 0.5995258202 | AN29: 87.74622045 | AO29: 28 | AP29: =(AL29/SUM(AL$2:AL$270)*1000000) -> 5995.258202 | AQ29: =LOG(AP29, 2) -> 12.54960617
A30: mir-1285 | B30: 4516 | C30: 1616 | D30: 3000 | E30: 8369 | F30: 8558 | G30: 7398 | H30: 5193 | I30: 2748 | J30: 3732 | K30: 1089 | L30: 21530 | M30: 1014 | N30: 3394 | O30: 3848 | P30: 2854 | Q30: 5160 | R30: 3340 | S30: 7758 | T30: 5132 | U30: 2898 | V30: 6151 | W30: 3246 | X30: 7256 | Y30: 647 | Z30: 4092 | AA30: 776 | AB30: 3687 | AC30: 6743 | AD30: 2645 | AE30: 5154 | AF30: 4420 | AG30: 19441 | AH30: 8542 | AI30: 4038 | AJ30: 4162 | AK30: 3637 | AL30: 187784 | AM30: 0.5245931242 | AN30: 88.27081357 | AO30: 29 | AP30: =(AL30/SUM(AL$2:AL$270)*1000000) -> 5245.931242 | AQ30: =LOG(AP30, 2) -> 12.35698318
A31: le7a | B31: 1090 | C31: 14442 | D31: 2839 | E31: 3963 | F31: 2862 | G31: 3348 | H31: 18068 | I31: 4923 | J31: 3473 | K31: 3194 | L31: 9282 | M31: 6499 | N31: 2856 | O31: 5042 | P31: 1876 | Q31: 715 | R31: 6245 | S31: 1903 | T31: 813 | U31: 4912 | V31: 2073 | W31: 2220 | X31: 1425 | Y31: 2905 | Z31: 8006 | AA31: 3700 | AB31: 773 | AC31: 1859 | AD31: 2960 | AE31: 6636 | AF31: 4546 | AG31: 2452 | AH31: 24072 | AI31: 6175 | AJ31: 1970 | AK31: 7116 | AL31: 177233 | AM31: 0.4951178651 | AN31: 88.76593144 | AO31: 30 | AP31: =(AL31/SUM(AL$2:AL$270)*1000000) -> 4951.178651 | AQ31: =LOG(AP31, 2) -> 12.27355629
A32: mir-99a | B32: 408 | C32: 9293 | D32: 1694 | E32: 4199 | F32: 2509 | G32: 1933 | H32: 28438 | I32: 3584 | J32: 3356 | K32: 3273 | L32: 9293 | M32: 8588 | N32: 3303 | O32: 4184 | P32: 2670 | Q32: 1809 | R32: 6113 | S32: 2577 | T32: 414 | U32: 4954 | V32: 1482 | W32: 1266 | X32: 1908 | Y32: 2061 | Z32: 16854 | AA32: 6595 | AB32: 933 | AC32: 2029 | AD32: 3602 | AE32: 5734 | AF32: 4839 | AG32: 3172 | AH32: 11274 | AI32: 3338 | AJ32: 2174 | AK32: 5100 | AL32: 174953 | AM32: 0.4887484603 | AN32: 89.2546799 | AO32: 31 | AP32: =(AL32/SUM(AL$2:AL$270)*1000000) -> 4887.484603 | AQ32: =LOG(AP32, 2) -> 12.25487644
A33: mir-183 | B33: 1975 | C33: 5122 | D33: 3136 | E33: 6091 | F33: 4435 | G33: 5118 | H33: 8993 | I33: 4787 | J33: 3808 | K33: 5450 | L33: 8035 | M33: 8556 | N33: 2070 | O33: 4760 | P33: 6893 | Q33: 4412 | R33: 6984 | S33: 3988 | T33: 2403 | U33: 3880 | V33: 2479 | W33: 2398 | X33: 3569 | Y33: 3175 | Z33: 6547 | AA33: 4922 | AB33: 1872 | AC33: 3931 | AD33: 3550 | AE33: 5897 | AF33: 2061 | AG33: 5165 | AH33: 6893 | AI33: 2889 | AJ33: 5447 | AK33: 2628 | AL33: 164319 | AM33: 0.4590413325 | AN33: 89.71372123 | AO33: 32 | AP33: =(AL33/SUM(AL$2:AL$270)*1000000) -> 4590.413325 | AQ33: =LOG(AP33, 2) -> 12.16440835
A34: mir-200c | B34: 684 | C34: 16782 | D34: 2424 | E34: 2301 | F34: 3272 | G34: 2328 | H34: 10587 | I34: 2881 | J34: 2442 | K34: 3268 | L34: 10088 | M34: 10470 | N34: 2024 | O34: 3500 | P34: 1858 | Q34: 895 | R34: 4024 | S34: 2143 | T34: 394 | U34: 5681 | V34: 1162 | W34: 2448 | X34: 1008 | Y34: 2339 | Z34: 8807 | AA34: 4459 | AB34: 888 | AC34: 1115 | AD34: 2994 | AE34: 4385 | AF34: 2860 | AG34: 2430 | AH34: 16962 | AI34: 3736 | AJ34: 1725 | AK34: 4237 | AL34: 149601 | AM34: 0.4179251479 | AN34: 90.13164638 | AO34: 33 | AP34: =(AL34/SUM(AL$2:AL$270)*1000000) -> 4179.251479 | AQ34: =LOG(AP34, 2) -> 12.02902886
A35: mir-122 | B35: 1964 | C35: 3796 | D35: 3409 | E35: 7432 | F35: 4745 | G35: 5084 | H35: 6289 | I35: 3885 | J35: 3492 | K35: 4640 | L35: 7226 | M35: 3299 | N35: 1437 | O35: 5698 | P35: 8274 | Q35: 4255 | R35: 4423 | S35: 2447 | T35: 4804 | U35: 4145 | V35: 4107 | W35: 2953 | X35: 2612 | Y35: 3249 | Z35: 6032 | AA35: 3240 | AB35: 1625 | AC35: 2601 | AD35: 3883 | AE35: 4596 | AF35: 2375 | AG35: 5333 | AH35: 3675 | AI35: 2155 | AJ35: 7696 | AK35: 2678 | AL35: 149554 | AM35: 0.4177938488 | AN35: 90.54944023 | AO35: 34 | AP35: =(AL35/SUM(AL$2:AL$270)*1000000) -> 4177.938488 | AQ35: =LOG(AP35, 2) -> 12.02857554
A36: mir-21-5p | B36: 1150 | C36: 6373 | D36: 1949 | E36: 4305 | F36: 5214 | G36: 4982 | H36: 7623 | I36: 3100 | J36: 2581 | K36: 3687 | L36: 7148 | M36: 8427 | N36: 2433 | O36: 4159 | P36: 4396 | Q36: 4028 | R36: 4862 | S36: 4390 | T36: 1543 | U36: 3343 | V36: 1816 | W36: 2423 | X36: 4429 | Y36: 3666 | Z36: 5452 | AA36: 3866 | AB36: 1438 | AC36: 2994 | AD36: 3508 | AE36: 4901 | AF36: 2971 | AG36: 5147 | AH36: 5757 | AI36: 2852 | AJ36: 4334 | AK36: 3805 | AL36: 145052 | AM36: 0.4052170678 | AN36: 90.9546573 | AO36: 35 | AP36: =(AL36/SUM(AL$2:AL$270)*1000000) -> 4052.170678 | AQ36: =LOG(AP36, 2) -> 11.98447923
A37: mir-34c | B37: 196 | C37: 3383 | D37: 1307 | E37: 4223 | F37: 1477 | G37: 963 | H37: 26565 | I37: 3090 | J37: 2670 | K37: 4225 | L37: 12073 | M37: 9169 | N37: 1020 | O37: 1160 | P37: 2038 | Q37: 1733 | R37: 5313 | S37: 785 | T37: 162 | U37: 6202 | V37: 934 | W37: 478 | X37: 720 | Y37: 594 | Z37: 14351 | AA37: 5201 | AB37: 734 | AC37: 1448 | AD37: 4325 | AE37: 6942 | AF37: 1298 | AG37: 2010 | AH37: 8758 | AI37: 2855 | AJ37: 719 | AK37: 698 | AL37: 139819 | AM37: 0.3905981662 | AN37: 91.34525546 | AO37: 36 | AP37: =(AL37/SUM(AL$2:AL$270)*1000000) -> 3905.981662 | AQ37: =LOG(AP37, 2) -> 11.93146946
A38: mir-532-5p | B38: 931 | C38: 3136 | D38: 1921 | E38: 4598 | F38: 3260 | G38: 3775 | H38: 6520 | I38: 3765 | J38: 3089 | K38: 2797 | L38: 6251 | M38: 5042 | N38: 1834 | O38: 2979 | P38: 3676 | Q38: 3100 | R38: 4398 | S38: 2647 | T38: 1304 | U38: 2800 | V38: 2110 | W38: 1478 | X38: 3279 | Y38: 3100 | Z38: 4425 | AA38: 3195 | AB38: 1619 | AC38: 3655 | AD38: 2875 | AE38: 4914 | AF38: 2399 | AG38: 4217 | AH38: 5810 | AI38: 2319 | AJ38: 3879 | AK38: 3022 | AL38: 120119 | AM38: 0.3355642733 | AN38: 91.68081974 | AO38: 37 | AP38: =(AL38/SUM(AL$2:AL$270)*1000000) -> 3355.642733 | AQ38: =LOG(AP38, 2) -> 11.71237341
A39: le7f | B39: 703 | C39: 7053 | D39: 1628 | E39: 2344 | F39: 1901 | G39: 2338 | H39: 9735 | I39: 3253 | J39: 2137 | K39: 1638 | L39: 5909 | M39: 4852 | N39: 1800 | O39: 2815 | P39: 1246 | Q39: 726 | R39: 3809 | S39: 1399 | T39: 450 | U39: 2746 | V39: 939 | W39: 1151 | X39: 1184 | Y39: 1733 | Z39: 4778 | AA39: 2042 | AB39: 614 | AC39: 1394 | AD39: 1881 | AE39: 3562 | AF39: 2344 | AG39: 1528 | AH39: 11063 | AI39: 3126 | AJ39: 1264 | AK39: 3859 | AL39: 100944 | AM39: 0.2819970196 | AN39: 91.96281676 | AO39: 38 | AP39: =(AL39/SUM(AL$2:AL$270)*1000000) -> 2819.970196 | AQ39: =LOG(AP39, 2) -> 11.4614642
A40: mir-151-3p | B40: 1419 | C40: 3092 | D40: 1976 | E40: 2747 | F40: 3818 | G40: 2900 | H40: 4595 | I40: 2675 | J40: 2254 | K40: 2362 | L40: 4640 | M40: 5924 | N40: 1126 | O40: 3015 | P40: 4724 | Q40: 3372 | R40: 2467 | S40: 3629 | T40: 1971 | U40: 2407 | V40: 1308 | W40: 1860 | X40: 1945 | Y40: 2071 | Z40: 3825 | AA40: 2873 | AB40: 1702 | AC40: 1916 | AD40: 1963 | AE40: 2675 | AF40: 1633 | AG40: 4455 | AH40: 3105 | AI40: 1324 | AJ40: 4281 | AK40: 1778 | AL40: 99827 | AM40: 0.27887657 | AN40: 92.24169333 | AO40: 39 | AP40: =(AL40/SUM(AL$2:AL$270)*1000000) -> 2788.7657 | AQ40: =LOG(AP40, 2) -> 11.44541101
A41: mir-3783p | B41: 1026 | C41: 3254 | D41: 1789 | E41: 2619 | F41: 3797 | G41: 2755 | H41: 3023 | I41: 2466 | J41: 1773 | K41: 2946 | L41: 4686 | M41: 6474 | N41: 1041 | O41: 2285 | P41: 4909 | Q41: 3509 | R41: 1950 | S41: 3650 | T41: 1249 | U41: 2529 | V41: 1279 | W41: 1746 | X41: 1951 | Y41: 2092 | Z41: 3202 | AA41: 2590 | AB41: 1315 | AC41: 2263 | AD41: 2048 | AE41: 3513 | AF41: 1392 | AG41: 4224 | AH41: 3125 | AI41: 1320 | AJ41: 3750 | AK41: 1703 | AL41: 95243 | AM41: 0.2660707139 | AN41: 92.50776404 | AO41: 40 | AP41: =(AL41/SUM(AL$2:AL$270)*1000000) -> 2660.707139 | AQ41: =LOG(AP41, 2) -> 11.37759401
A42: mir-182 | B42: 1474 | C42: 3621 | D42: 2619 | E42: 2492 | F42: 3626 | G42: 4256 | H42: 3684 | I42: 3082 | J42: 1952 | K42: 2307 | L42: 4563 | M42: 6349 | N42: 1190 | O42: 3119 | P42: 3434 | Q42: 2247 | R42: 2706 | S42: 2281 | T42: 1100 | U42: 2549 | V42: 1470 | W42: 2080 | X42: 2106 | Y42: 1892 | Z42: 2695 | AA42: 1633 | AB42: 1006 | AC42: 1550 | AD42: 1873 | AE42: 3134 | AF42: 1428 | AG42: 2745 | AH42: 4549 | AI42: 1754 | AJ42: 2407 | AK42: 1532 | AL42: 92505 | AM42: 0.2584218408 | AN42: 92.76618588 | AO42: 41 | AP42: =(AL42/SUM(AL$2:AL$270)*1000000) -> 2584.218408 | AQ42: =LOG(AP42, 2) -> 11.33551229
A43: mir-273p | B43: 366 | C43: 5067 | D43: 1152 | E43: 1630 | F43: 2029 | G43: 1763 | H43: 8420 | I43: 1644 | J43: 1226 | K43: 1607 | L43: 5931 | M43: 6063 | N43: 1424 | O43: 2033 | P43: 1298 | Q43: 907 | R43: 3004 | S43: 1905 | T43: 296 | U43: 3398 | V43: 545 | W43: 1292 | X43: 1341 | Y43: 1868 | Z43: 6119 | AA43: 3486 | AB43: 553 | AC43: 902 | AD43: 1692 | AE43: 3059 | AF43: 1947 | AG43: 1629 | AH43: 7433 | AI43: 2298 | AJ43: 1541 | AK43: 2849 | AL43: 89717 | AM43: 0.2506332879 | AN43: 93.01681917 | AO43: 42 | AP43: =(AL43/SUM(AL$2:AL$270)*1000000) -> 2506.332879 | AQ43: =LOG(AP43, 2) -> 11.29136232
A44: mir-2005p | B44: 900 | C44: 2718 | D44: 924 | E44: 2445 | F44: 2845 | G44: 2893 | H44: 3409 | I44: 1384 | J44: 2022 | K44: 2087 | L44: 4792 | M44: 6981 | N44: 1670 | O44: 2321 | P44: 5377 | Q44: 4110 | R44: 2610 | S44: 2293 | T44: 856 | U44: 2711 | V44: 770 | W44: 1391 | X44: 2047 | Y44: 1722 | Z44: 2760 | AA44: 3597 | AB44: 1026 | AC44: 1553 | AD44: 1164 | AE44: 2194 | AF44: 1523 | AG44: 3813 | AH44: 4306 | AI44: 780 | AJ44: 3998 | AK44: 1035 | AL44: 89027 | AM44: 0.2487057048 | AN44: 93.26552487 | AO44: 43 | AP44: =(AL44/SUM(AL$2:AL$270)*1000000) -> 2487.057048 | AQ44: =LOG(AP44, 2) -> 11.28022389
A45: mir-429 | B45: 639 | C45: 3055 | D45: 1305 | E45: 1674 | F45: 2326 | G45: 5061 | H45: 3149 | I45: 2013 | J45: 2044 | K45: 1314 | L45: 4908 | M45: 8130 | N45: 1236 | O45: 2219 | P45: 2587 | Q45: 2057 | R45: 2294 | S45: 1426 | T45: 230 | U45: 4411 | V45: 687 | W45: 1778 | X45: 1781 | Y45: 2187 | Z45: 2185 | AA45: 1287 | AB45: 760 | AC45: 1423 | AD45: 1495 | AE45: 3286 | AF45: 1431 | AG45: 2975 | AH45: 9289 | AI45: 1646 | AJ45: 1400 | AK45: 1128 | AL45: 86816 | AM45: 0.2425290582 | AN45: 93.50805393 | AO45: 44 | AP45: =(AL45/SUM(AL$2:AL$270)*1000000) -> 2425.290582 | AQ45: =LOG(AP45, 2) -> 11.2439419
A46: mir-423-5p | B46: 2412 | C46: 2825 | D46: 1908 | E46: 4366 | F46: 1381 | G46: 1810 | H46: 4543 | I46: 3086 | J46: 2375 | K46: 1884 | L46: 3357 | M46: 2900 | N46: 889 | O46: 1953 | P46: 2695 | Q46: 1154 | R46: 2223 | S46: 2141 | T46: 4384 | U46: 1703 | V46: 2919 | W46: 1101 | X46: 1111 | Y46: 1653 | Z46: 2678 | AA46: 1997 | AB46: 975 | AC46: 2896 | AD46: 2028 | AE46: 2231 | AF46: 1522 | AG46: 2936 | AH46: 5182 | AI46: 1274 | AJ46: 2102 | AK46: 1303 | AL46: 83897 | AM46: 0.2343745439 | AN46: 93.74242847 | AO46: 45 | AP46: =(AL46/SUM(AL$2:AL$270)*1000000) -> 2343.745439 | AQ46: =LOG(AP46, 2) -> 11.19460017
A47: mir-17-5p | B47: 1365 | C47: 3607 | D47: 2457 | E47: 920 | F47: 3134 | G47: 3790 | H47: 1154 | I47: 3106 | J47: 1509 | K47: 1021 | L47: 3732 | M47: 10421 | N47: 451 | O47: 1389 | P47: 1893 | Q47: 1232 | R47: 707 | S47: 1695 | T47: 453 | U47: 3728 | V47: 698 | W47: 2852 | X47: 934 | Y47: 2033 | Z47: 1465 | AA47: 681 | AB47: 893 | AC47: 1125 | AD47: 1326 | AE47: 2169 | AF47: 812 | AG47: 2502 | AH47: 4735 | AI47: 1186 | AJ47: 943 | AK47: 943 | AL47: 73061 | AM47: 0.2041031092 | AN47: 93.94653158 | AO47: 46 | AP47: =(AL47/SUM(AL$2:AL$270)*1000000) -> 2041.031092 | AQ47: =LOG(AP47, 2) -> 10.99508244
A48: le7g | B48: 310 | C48: 5606 | D48: 1061 | E48: 1348 | F48: 1509 | G48: 1663 | H48: 6536 | I48: 1867 | J48: 1338 | K48: 1008 | L48: 4307 | M48: 3640 | N48: 1489 | O48: 1935 | P48: 840 | Q48: 548 | R48: 2420 | S48: 1138 | T48: 189 | U48: 2005 | V48: 577 | W48: 923 | X48: 892 | Y48: 1416 | Z48: 3227 | AA48: 1483 | AB48: 450 | AC48: 713 | AD48: 1410 | AE48: 2415 | AF48: 1945 | AG48: 1138 | AH48: 8029 | AI48: 2471 | AJ48: 1091 | AK48: 3794 | AL48: 72731 | AM48: 0.2031812216 | AN48: 94.14971281 | AO48: 47 | AP48: =(AL48/SUM(AL$2:AL$270)*1000000) -> 2031.812216 | AQ48: =LOG(AP48, 2) -> 10.98855136
A49: mir-320 | B49: 2230 | C49: 3324 | D49: 2514 | E49: 1422 | F49: 2418 | G49: 2682 | H49: 1835 | I49: 2815 | J49: 1994 | K49: 1621 | L49: 3255 | M49: 5382 | N49: 704 | O49: 2183 | P49: 2175 | Q49: 1084 | R49: 1321 | S49: 1933 | T49: 1634 | U49: 2297 | V49: 1580 | W49: 2172 | X49: 1028 | Y49: 2019 | Z49: 1860 | AA49: 1267 | AB49: 869 | AC49: 1376 | AD49: 1464 | AE49: 2286 | AF49: 1308 | AG49: 1586 | AH49: 3840 | AI49: 1052 | AJ49: 1996 | AK49: 1227 | AL49: 71753 | AM49: 0.2004490822 | AN49: 94.35016189 | AO49: 48 | AP49: =(AL49/SUM(AL$2:AL$270)*1000000) -> 2004.490822 | AQ49: =LOG(AP49, 2) -> 10.9690201
A50: mir-302c | B50: 894 | C50: 2558 | D50: 1501 | E50: 1104 | F50: 2210 | G50: 2642 | H50: 1846 | I50: 2299 | J50: 1295 | K50: 979 | L50: 2640 | M50: 5862 | N50: 888 | O50: 1790 | P50: 3477 | Q50: 2151 | R50: 1110 | S50: 1817 | T50: 587 | U50: 2544 | V50: 493 | W50: 1159 | X50: 1549 | Y50: 2024 | Z50: 1675 | AA50: 1228 | AB50: 885 | AC50: 1130 | AD50: 1586 | AE50: 2391 | AF50: 1223 | AG50: 2925 | AH50: 2578 | AI50: 829 | AJ50: 1938 | AK50: 1334 | AL50: 65141 | AM50: 0.181977808 | AN50: 94.5321397 | AO50: 49 | AP50: =(AL50/SUM(AL$2:AL$270)*1000000) -> 1819.77808 | AQ50: =LOG(AP50, 2) -> 10.82954681
A51: le7b | B51: 327 | C51: 6530 | D51: 1118 | E51: 1258 | F51: 994 | G51: 1020 | H51: 6501 | I51: 1491 | J51: 1149 | K51: 1073 | L51: 3089 | M51: 2289 | N51: 945 | O51: 1824 | P51: 622 | Q51: 165 | R51: 1758 | S51: 687 | T51: 237 | U51: 2090 | V51: 869 | W51: 686 | X51: 424 | Y51: 1002 | Z51: 2781 | AA51: 1312 | AB51: 212 | AC51: 401 | AD51: 1102 | AE51: 2196 | AF51: 1646 | AG51: 708 | AH51: 8834 | AI51: 2174 | AJ51: 600 | AK51: 2393 | AL51: 62507 | AM51: 0.1746194693 | AN51: 94.70675916 | AO51: 50 | AP51: =(AL51/SUM(AL$2:AL$270)*1000000) -> 1746.194693 | AQ51: =LOG(AP51, 2) -> 10.76999871
A52: mir-423 | B52: 1107 | C52: 1658 | D52: 1326 | E52: 2330 | F52: 1488 | G52: 1770 | H52: 2815 | I52: 2445 | J52: 1722 | K52: 1511 | L52: 3073 | M52: 2542 | N52: 748 | O52: 1570 | P52: 2278 | Q52: 1230 | R52: 1576 | S52: 1682 | T52: 1636 | U52: 1603 | V52: 1450 | W52: 965 | X52: 1109 | Y52: 1691 | Z52: 2083 | AA52: 1430 | AB52: 849 | AC52: 2219 | AD52: 1593 | AE52: 2001 | AF52: 1142 | AG52: 2361 | AH52: 3301 | AI52: 878 | AJ52: 1681 | AK52: 1060 | AL52: 61923 | AM52: 0.1729880077 | AN52: 94.87974717 | AO52: 51 | AP52: =(AL52/SUM(AL$2:AL$270)*1000000) -> 1729.880077 | AQ52: =LOG(AP52, 2) -> 10.75645631
A53: mir-101 | B53: 779 | C53: 2391 | D53: 1015 | E53: 1220 | F53: 2492 | G53: 2117 | H53: 2032 | I53: 1536 | J53: 891 | K53: 1351 | L53: 3045 | M53: 4319 | N53: 496 | O53: 1031 | P53: 2450 | Q53: 2169 | R53: 1251 | S53: 2499 | T53: 663 | U53: 2178 | V53: 444 | W53: 1284 | X53: 1283 | Y53: 2046 | Z53: 2186 | AA53: 1659 | AB53: 837 | AC53: 1153 | AD53: 1099 | AE53: 1997 | AF53: 573 | AG53: 2451 | AH53: 2026 | AI53: 817 | AJ53: 1784 | AK53: 1081 | AL53: 58645 | AM53: 0.1638305914 | AN53: 95.04357776 | AO53: 52 | AP53: =(AL53/SUM(AL$2:AL$270)*1000000) -> 1638.305914 | AQ53: =LOG(AP53, 2) -> 10.67798905
A54: mir-99b | B54: 515 | C54: 1969 | D54: 843 | E54: 1551 | F54: 973 | G54: 813 | H54: 3541 | I54: 1206 | J54: 1122 | K54: 1656 | L54: 2822 | M54: 1913 | N54: 698 | O54: 1407 | P54: 1232 | Q54: 919 | R54: 1842 | S54: 945 | T54: 1177 | U54: 1116 | V54: 838 | W54: 590 | X54: 706 | Y54: 808 | Z54: 3127 | AA54: 2190 | AB54: 748 | AC54: 1103 | AD54: 974 | AE54: 1438 | AF54: 750 | AG54: 1158 | AH54: 2187 | AI54: 725 | AJ54: 1848 | AK54: 860 | AL54: 48310 | AM54: 0.1349587496 | AN54: 95.17853651 | AO54: 53 | AP54: =(AL54/SUM(AL$2:AL$270)*1000000) -> 1349.587496 | AQ54: =LOG(AP54, 2) -> 10.3983028
A55: mir-7641-2 | B55: 1275 | C55: 933 | D55: 1079 | E55: 871 | F55: 1396 | G55: 1158 | H55: 1332 | I55: 1480 | J55: 1180 | K55: 2352 | L55: 2084 | M55: 543 | N55: 670 | O55: 1809 | P55: 2388 | Q55: 820 | R55: 1095 | S55: 1149 | T55: 2199 | U55: 909 | V55: 1649 | W55: 624 | X55: 980 | Y55: 1362 | Z55: 2159 | AA55: 1970 | AB55: 595 | AC55: 1704 | AD55: 859 | AE55: 1836 | AF55: 703 | AG55: 1563 | AH55: 1154 | AI55: 506 | AJ55: 1759 | AK55: 809 | AL55: 46954 | AM55: 0.1311706298 | AN55: 95.30970714 | AO55: 54 | AP55: =(AL55/SUM(AL$2:AL$270)*1000000) -> 1311.706298 | AQ55: =LOG(AP55, 2) -> 10.35722901
A56: mir-25 | B56: 699 | C56: 1990 | D56: 1498 | E56: 795 | F56: 1953 | G56: 2179 | H56: 1238 | I56: 1571 | J56: 878 | K56: 842 | L56: 2265 | M56: 4501 | N56: 451 | O56: 1186 | P56: 1526 | Q56: 1151 | R56: 712 | S56: 1395 | T56: 496 | U56: 1743 | V56: 482 | W56: 1334 | X56: 829 | Y56: 1139 | Z56: 1233 | AA56: 870 | AB56: 590 | AC56: 732 | AD56: 1034 | AE56: 1473 | AF56: 791 | AG56: 1609 | AH56: 2676 | AI56: 862 | AJ56: 1232 | AK56: 875 | AL56: 46830 | AM56: 0.1308242236 | AN56: 95.44053137 | AO56: 55 | AP56: =(AL56/SUM(AL$2:AL$270)*1000000) -> 1308.242236 | AQ56: =LOG(AP56, 2) -> 10.35341398
A57: mir-103 | B57: 938 | C57: 2655 | D57: 1432 | E57: 693 | F57: 1753 | G57: 1988 | H57: 1124 | I57: 1815 | J57: 957 | K57: 760 | L57: 2448 | M57: 5133 | N57: 416 | O57: 903 | P57: 1206 | Q57: 842 | R57: 617 | S57: 1144 | T57: 445 | U57: 2155 | V57: 435 | W57: 1338 | X57: 642 | Y57: 1102 | Z57: 1225 | AA57: 582 | AB57: 627 | AC57: 712 | AD57: 843 | AE57: 1312 | AF57: 617 | AG57: 1122 | AH57: 3020 | AI57: 770 | AJ57: 946 | AK57: 743 | AL57: 45460 | AM57: 0.1269969935 | AN57: 95.56752836 | AO57: 56 | AP57: =(AL57/SUM(AL$2:AL$270)*1000000) -> 1269.969935 | AQ57: =LOG(AP57, 2) -> 10.31057863
A58: mir-7857-3p | B58: 865 | C58: 1036 | D58: 977 | E58: 1215 | F58: 1090 | G58: 1991 | H58: 1790 | I58: 2156 | J58: 1403 | K58: 899 | L58: 2031 | M58: 2684 | N58: 400 | O58: 869 | P58: 1211 | Q58: 712 | R58: 1253 | S58: 1033 | T58: 776 | U58: 1746 | V58: 603 | W58: 800 | X58: 836 | Y58: 1368 | Z58: 1670 | AA58: 848 | AB58: 583 | AC58: 1468 | AD58: 1190 | AE58: 1754 | AF58: 669 | AG58: 1309 | AH58: 3669 | AI58: 999 | AJ58: 838 | AK58: 666 | AL58: 45407 | AM58: 0.1268489328 | AN58: 95.69437729 | AO58: 57 | AP58: =(AL58/SUM(AL$2:AL$270)*1000000) -> 1268.489328 | AQ58: =LOG(AP58, 2) -> 10.30889567
A59: mir-7134-3p | B59: 644 | C59: 1571 | D59: 874 | E59: 1510 | F59: 1216 | G59: 921 | H59: 2755 | I59: 1157 | J59: 1047 | K59: 1434 | L59: 2333 | M59: 2152 | N59: 535 | O59: 1097 | P59: 1775 | Q59: 1270 | R59: 1279 | S59: 1370 | T59: 811 | U59: 1168 | V59: 653 | W59: 556 | X59: 590 | Y59: 774 | Z59: 2266 | AA59: 1490 | AB59: 617 | AC59: 1123 | AD59: 774 | AE59: 1220 | AF59: 670 | AG59: 1496 | AH59: 1697 | AI59: 541 | AJ59: 1477 | AK59: 674 | AL59: 43537 | AM59: 0.1216249033 | AN59: 95.8160022 | AO59: 58 | AP59: =(AL59/SUM(AL$2:AL$270)*1000000) -> 1216.249033 | AQ59: =LOG(AP59, 2) -> 10.24822294
A60: mir-923p | B60: 308 | C60: 1604 | D60: 550 | E60: 1342 | F60: 551 | G60: 580 | H60: 6293 | I60: 1459 | J60: 1154 | K60: 1019 | L60: 2378 | M60: 1857 | N60: 310 | O60: 534 | P60: 887 | Q60: 468 | R60: 1573 | S60: 256 | T60: 554 | U60: 1390 | V60: 701 | W60: 294 | X60: 328 | Y60: 333 | Z60: 3541 | AA60: 1151 | AB60: 323 | AC60: 768 | AD60: 1182 | AE60: 1297 | AF60: 457 | AG60: 897 | AH60: 4137 | AI60: 879 | AJ60: 383 | AK60: 268 | AL60: 42006 | AM60: 0.1173479038 | AN60: 95.9333501 | AO60: 59 | AP60: =(AL60/SUM(AL$2:AL$270)*1000000) -> 1173.479038 | AQ60: =LOG(AP60, 2) -> 10.19657636
A61: mir-3715p | B61: 778 | C61: 1664 | D61: 1062 | E61: 873 | F61: 1453 | G61: 2079 | H61: 1060 | I61: 2126 | J61: 1009 | K61: 682 | L61: 1485 | M61: 2183 | N61: 500 | O61: 1510 | P61: 871 | Q61: 732 | R61: 696 | S61: 945 | T61: 713 | U61: 859 | V61: 668 | W61: 978 | X61: 1265 | Y61: 1293 | Z61: 747 | AA61: 434 | AB61: 453 | AC61: 928 | AD61: 1032 | AE61: 1520 | AF61: 1013 | AG61: 1438 | AH61: 1930 | AI61: 812 | AJ61: 799 | AK61: 838 | AL61: 39428 | AM61: 0.1101460066 | AN61: 96.04349611 | AO61: 60 | AP61: =(AL61/SUM(AL$2:AL$270)*1000000) -> 1101.460066 | AQ61: =LOG(AP61, 2) -> 10.10520147
A62: mir-378d | B62: 407 | C62: 1755 | D62: 1066 | E62: 806 | F62: 1840 | G62: 1135 | H62: 1115 | I62: 841 | J62: 782 | K62: 1336 | L62: 1834 | M62: 2932 | N62: 336 | O62: 939 | P62: 1714 | Q62: 1271 | R62: 803 | S62: 1359 | T62: 401 | U62: 1581 | V62: 555 | W62: 809 | X62: 649 | Y62: 941 | Z62: 1423 | AA62: 1218 | AB62: 450 | AC62: 692 | AD62: 916 | AE62: 1893 | AF62: 496 | AG62: 1423 | AH62: 1175 | AI62: 481 | AJ62: 1257 | AK62: 617 | AL62: 39248 | AM62: 0.1096431588 | AN62: 96.15313927 | AO62: 61 | AP62: =(AL62/SUM(AL$2:AL$270)*1000000) -> 1096.431588 | AQ62: =LOG(AP62, 2) -> 10.09860008
A63: mir-503 | B63: 376 | C63: 1076 | D63: 698 | E63: 644 | F63: 1746 | G63: 1715 | H63: 1062 | I63: 1058 | J63: 626 | K63: 874 | L63: 1625 | M63: 2723 | N63: 348 | O63: 795 | P63: 1502 | Q63: 1122 | R63: 638 | S63: 1049 | T63: 391 | U63: 1449 | V63: 467 | W63: 1043 | X63: 961 | Y63: 1299 | Z63: 1422 | AA63: 881 | AB63: 438 | AC63: 810 | AD63: 771 | AE63: 1476 | AF63: 540 | AG63: 1591 | AH63: 1413 | AI63: 535 | AJ63: 890 | AK63: 598 | AL63: 36652 | AM63: 0.1023909768 | AN63: 96.25553024 | AO63: 62 | AP63: =(AL63/SUM(AL$2:AL$270)*1000000) -> 1023.909768 | AQ63: =LOG(AP63, 2) -> 9.999872868
A64: mir-26b | B64: 376 | C64: 2050 | D64: 874 | E64: 574 | F64: 1134 | G64: 1819 | H64: 1706 | I64: 1386 | J64: 664 | K64: 441 | L64: 1605 | M64: 3312 | N64: 354 | O64: 844 | P64: 709 | Q64: 453 | R64: 639 | S64: 615 | T64: 136 | U64: 1500 | V64: 316 | W64: 876 | X64: 530 | Y64: 1043 | Z64: 1101 | AA64: 449 | AB64: 238 | AC64: 459 | AD64: 811 | AE64: 1397 | AF64: 584 | AG64: 940 | AH64: 3824 | AI64: 911 | AJ64: 391 | AK64: 845 | AL64: 35906 | AM64: 0.1003069522 | AN64: 96.35583719 | AO64: 63 | AP64: =(AL64/SUM(AL$2:AL$270)*1000000) -> 1003.069522 | AQ64: =LOG(AP64, 2) -> 9.970205887
A65: ENSSSCG00000025162 | B65: 426 | C65: 357 | D65: 446 | E65: 1313 | F65: 822 | G65: 406 | H65: 1192 | I65: 467 | J65: 638 | K65: 2131 | L65: 1831 | M65: 130 | N65: 834 | O65: 1147 | P65: 1399 | Q65: 830 | R65: 865 | S65: 1062 | T65: 2070 | U65: 295 | V65: 1649 | W65: 173 | X65: 1319 | Y65: 414 | Z65: 2074 | AA65: 1565 | AB65: 1039 | AC65: 1494 | AD65: 988 | AE65: 1074 | AF65: 883 | AG65: 1535 | AH65: 404 | AI65: 191 | AJ65: 1738 | AK65: 559 | AL65: 35760 | AM65: 0.09989908684 | AN65: 96.45573628 | AO65: 64 | AP65: =(AL65/SUM(AL$2:AL$270)*1000000) -> 998.9908684 | AQ65: =LOG(AP65, 2) -> 9.96432768
A66: mir-296-3p | B66: 556 | C66: 1054 | D66: 714 | E66: 1345 | F66: 680 | G66: 920 | H66: 1483 | I66: 1288 | J66: 1033 | K66: 930 | L66: 1667 | M66: 1684 | N66: 586 | O66: 919 | P66: 1262 | Q66: 848 | R66: 1058 | S66: 1120 | T66: 701 | U66: 854 | V66: 696 | W66: 418 | X66: 689 | Y66: 967 | Z66: 1324 | AA66: 917 | AB66: 564 | AC66: 1189 | AD66: 1004 | AE66: 1122 | AF66: 808 | AG66: 1318 | AH66: 1603 | AI66: 416 | AJ66: 1153 | AK66: 713 | AL66: 35603 | AM66: 0.09946049185 | AN66: 96.55519677 | AO66: 65 | AP66: =(AL66/SUM(AL$2:AL$270)*1000000) -> 994.6049185 | AQ66: =LOG(AP66, 2) -> 9.957979755
A67: mir-93 | B67: 618 | C67: 1557 | D67: 1125 | E67: 413 | F67: 1490 | G67: 1658 | H67: 637 | I67: 1359 | J67: 780 | K67: 489 | L67: 1835 | M67: 4296 | N67: 314 | O67: 757 | P67: 908 | Q67: 613 | R67: 401 | S67: 751 | T67: 269 | U67: 1564 | V67: 326 | W67: 1084 | X67: 462 | Y67: 964 | Z67: 780 | AA67: 378 | AB67: 423 | AC67: 562 | AD67: 642 | AE67: 975 | AF67: 498 | AG67: 1012 | AH67: 2041 | AI67: 563 | AJ67: 498 | AK67: 523 | AL67: 33565 | AM67: 0.09376713785 | AN67: 96.64896391 | AO67: 66 | AP67: =(AL67/SUM(AL$2:AL$270)*1000000) -> 937.6713785 | AQ67: =LOG(AP67, 2) -> 9.872938586
A68: mir-1246 | B68: 1297 | C68: 946 | D68: 465 | E68: 454 | F68: 1156 | G68: 1292 | H68: 840 | I68: 1760 | J68: 768 | K68: 1431 | L68: 1458 | M68: 388 | N68: 853 | O68: 1807 | P68: 1044 | Q68: 345 | R68: 1115 | S68: 352 | T68: 1321 | U68: 396 | V68: 1423 | W68: 310 | X68: 1350 | Y68: 511 | Z68: 1272 | AA68: 786 | AB68: 479 | AC68: 964 | AD68: 793 | AE68: 1113 | AF68: 610 | AG68: 1030 | AH68: 569 | AI68: 801 | AJ68: 902 | AK68: 383 | AL68: 32784 | AM68: 0.09158533733 | AN68: 96.74054925 | AO68: 67 | AP68: =(AL68/SUM(AL$2:AL$270)*1000000) -> 915.8533733 | AQ68: =LOG(AP68, 2) -> 9.838972833
A69: mir-744 | B69: 442 | C69: 1465 | D69: 559 | E69: 698 | F69: 661 | G69: 618 | H69: 1185 | I69: 918 | J69: 609 | K69: 864 | L69: 1627 | M69: 2104 | N69: 309 | O69: 580 | P69: 994 | Q69: 836 | R69: 736 | S69: 826 | T69: 601 | U69: 738 | V69: 464 | W69: 423 | X69: 411 | Y69: 603 | Z69: 1187 | AA69: 803 | AB69: 464 | AC69: 762 | AD69: 687 | AE69: 794 | AF69: 408 | AG69: 1023 | AH69: 1487 | AI69: 371 | AJ69: 926 | AK69: 416 | AL69: 28599 | AM69: 0.07989412708 | AN69: 96.82044338 | AO69: 68 | AP69: =(AL69/SUM(AL$2:AL$270)*1000000) -> 798.9412708 | AQ69: =LOG(AP69, 2) -> 9.641945646
A70: mir-1271 | B70: 501 | C70: 1147 | D70: 761 | E70: 541 | F70: 1234 | G70: 1151 | H70: 755 | I70: 946 | J70: 538 | K70: 545 | L70: 1324 | M70: 2546 | N70: 276 | O70: 652 | P70: 1076 | Q70: 741 | R70: 471 | S70: 892 | T70: 475 | U70: 1015 | V70: 271 | W70: 835 | X70: 566 | Y70: 784 | Z70: 799 | AA70: 518 | AB70: 436 | AC70: 555 | AD70: 590 | AE70: 872 | AF70: 405 | AG70: 1028 | AH70: 1395 | AI70: 511 | AJ70: 783 | AK70: 529 | AL70: 28464 | AM70: 0.07951699127 | AN70: 96.89996037 | AO70: 69 | AP70: =(AL70/SUM(AL$2:AL$270)*1000000) -> 795.1699127 | AQ70: =LOG(AP70, 2) -> 9.63511936
A71: mir-371 | B71: 344 | C71: 1205 | D71: 964 | E71: 220 | F71: 1958 | G71: 639 | H71: 218 | I71: 1714 | J71: 302 | K71: 623 | L71: 624 | M71: 1302 | N71: 145 | O71: 1204 | P71: 399 | Q71: 191 | R71: 648 | S71: 736 | T71: 379 | U71: 194 | V71: 172 | W71: 1247 | X71: 1280 | Y71: 1679 | Z71: 688 | AA71: 127 | AB71: 142 | AC71: 884 | AD71: 1823 | AE71: 1611 | AF71: 739 | AG71: 1367 | AH71: 479 | AI71: 1075 | AJ71: 278 | AK71: 837 | AL71: 28437 | AM71: 0.0794415641 | AN71: 96.97940193 | AO71: 70 | AP71: =(AL71/SUM(AL$2:AL$270)*1000000) -> 794.415641 | AQ71: =LOG(AP71, 2) -> 9.633750218
A72: mir-185 | B72: 358 | C72: 1016 | D72: 735 | E72: 354 | F72: 1271 | G72: 1499 | H72: 599 | I72: 930 | J72: 474 | K72: 480 | L72: 1621 | M72: 2789 | N72: 289 | O72: 591 | P72: 1052 | Q72: 827 | R72: 459 | S72: 931 | T72: 177 | U72: 1132 | V72: 182 | W72: 958 | X72: 549 | Y72: 895 | Z72: 724 | AA72: 391 | AB72: 336 | AC72: 477 | AD72: 532 | AE72: 963 | AF72: 412 | AG72: 1046 | AH72: 1605 | AI72: 502 | AJ72: 611 | AK72: 547 | AL72: 28314 | AM72: 0.07909795147 | AN72: 97.05849988 | AO72: 71 | AP72: =(AL72/SUM(AL$2:AL$270)*1000000) -> 790.9795147 | AQ72: =LOG(AP72, 2) -> 9.627496521
A73: mir-186 | B73: 336 | C73: 1039 | D73: 626 | E73: 622 | F73: 768 | G73: 1274 | H73: 1140 | I73: 1039 | J73: 545 | K73: 472 | L73: 1308 | M73: 1641 | N73: 334 | O73: 663 | P73: 628 | Q73: 322 | R73: 506 | S73: 680 | T73: 191 | U73: 1032 | V73: 301 | W73: 517 | X73: 489 | Y73: 925 | Z73: 914 | AA73: 436 | AB73: 257 | AC73: 537 | AD73: 718 | AE73: 1186 | AF73: 572 | AG73: 789 | AH73: 2029 | AI73: 587 | AJ73: 453 | AK73: 730 | AL73: 26606 | AM73: 0.07432648502 | AN73: 97.13282637 | AO73: 72 | AP73: =(AL73/SUM(AL$2:AL$270)*1000000) -> 743.2648502 | AQ73: =LOG(AP73, 2) -> 9.537732573
A74: mir-24-3p | B74: 125 | C74: 2477 | D74: 443 | E74: 358 | F74: 560 | G74: 484 | H74: 1543 | I74: 465 | J74: 313 | K74: 443 | L74: 1726 | M74: 2353 | N74: 335 | O74: 470 | P74: 453 | Q74: 217 | R74: 526 | S74: 555 | T74: 109 | U74: 1062 | V74: 151 | W74: 363 | X74: 205 | Y74: 419 | Z74: 1261 | AA74: 648 | AB74: 140 | AC74: 185 | AD74: 472 | AE74: 651 | AF74: 468 | AG74: 434 | AH74: 2599 | AI74: 532 | AJ74: 397 | AK74: 815 | AL74: 24757 | AM74: 0.06916112116 | AN74: 97.20198749 | AO74: 73 | AP74: =(AL74/SUM(AL$2:AL$270)*1000000) -> 691.6112116 | AQ74: =LOG(AP74, 2) -> 9.433817446
A75: mir-28-3p | B75: 535 | C75: 1140 | D75: 491 | E75: 450 | F75: 786 | G75: 827 | H75: 772 | I75: 854 | J75: 521 | K75: 519 | L75: 989 | M75: 1834 | N75: 273 | O75: 621 | P75: 1266 | Q75: 528 | R75: 370 | S75: 963 | T75: 618 | U75: 772 | V75: 304 | W75: 473 | X75: 339 | Y75: 669 | Z75: 785 | AA75: 546 | AB75: 318 | AC75: 497 | AD75: 440 | AE75: 652 | AF75: 354 | AG75: 749 | AH75: 866 | AI75: 257 | AJ75: 790 | AK75: 409 | AL75: 23577 | AM75: 0.06586467479 | AN75: 97.26785216 | AO75: 74 | AP75: =(AL75/SUM(AL$2:AL$270)*1000000) -> 658.6467479 | AQ75: =LOG(AP75, 2) -> 9.363361102
A76: mir-3745p | B76: 437 | C76: 893 | D76: 774 | E76: 336 | F76: 1330 | G76: 1177 | H76: 489 | I76: 886 | J76: 454 | K76: 434 | L76: 1274 | M76: 2784 | N76: 207 | O76: 488 | P76: 743 | Q76: 602 | R76: 244 | S76: 646 | T76: 120 | U76: 982 | V76: 230 | W76: 612 | X76: 391 | Y76: 593 | Z76: 586 | AA76: 314 | AB76: 323 | AC76: 296 | AD76: 380 | AE76: 614 | AF76: 272 | AG76: 717 | AH76: 1086 | AI76: 335 | AJ76: 347 | AK76: 322 | AL76: 22718 | AM76: 0.06346497357 | AN76: 97.33131714 | AO76: 75 | AP76: =(AL76/SUM(AL$2:AL$270)*1000000) -> 634.6497357 | AQ76: =LOG(AP76, 2) -> 9.309816775
A77: mir-27a | B77: 86 | C77: 841 | D77: 240 | E77: 374 | F77: 484 | G77: 410 | H77: 2126 | I77: 410 | J77: 316 | K77: 342 | L77: 1563 | M77: 1569 | N77: 422 | O77: 550 | P77: 274 | Q77: 163 | R77: 901 | S77: 537 | T77: 39 | U77: 831 | V77: 118 | W77: 290 | X77: 267 | Y77: 492 | Z77: 1582 | AA77: 714 | AB77: 92 | AC77: 192 | AD77: 371 | AE77: 728 | AF77: 606 | AG77: 345 | AH77: 2016 | AI77: 455 | AJ77: 275 | AK77: 832 | AL77: 21853 | AM77: 0.06104851076 | AN77: 97.39236565 | AO77: 76 | AP77: =(AL77/SUM(AL$2:AL$270)*1000000) -> 610.4851076 | AQ77: =LOG(AP77, 2) -> 9.253812292
A78: mir-140-3p | B78: 281 | C78: 1094 | D78: 433 | E78: 424 | F78: 891 | G78: 803 | H78: 785 | I78: 613 | J78: 353 | K78: 431 | L78: 902 | M78: 1545 | N78: 302 | O78: 607 | P78: 675 | Q78: 608 | R78: 444 | S78: 879 | T78: 265 | U78: 767 | V78: 228 | W78: 512 | X78: 500 | Y78: 672 | Z78: 677 | AA78: 519 | AB78: 242 | AC78: 429 | AD78: 440 | AE78: 899 | AF78: 437 | AG78: 624 | AH78: 833 | AI78: 374 | AJ78: 724 | AK78: 498 | AL78: 21710 | AM78: 0.06064902615 | AN78: 97.45301467 | AO78: 77 | AP78: =(AL78/SUM(AL$2:AL$270)*1000000) -> 606.4902615 | AQ78: =LOG(AP78, 2) -> 9.24434067
A79: mir-28-5p | B79: 545 | C79: 870 | D79: 539 | E79: 382 | F79: 763 | G79: 677 | H79: 592 | I79: 617 | J79: 471 | K79: 543 | L79: 1089 | M79: 1734 | N79: 184 | O79: 452 | P79: 945 | Q79: 453 | R79: 346 | S79: 875 | T79: 418 | U79: 860 | V79: 200 | W79: 554 | X79: 258 | Y79: 681 | Z79: 674 | AA79: 485 | AB79: 262 | AC79: 528 | AD79: 333 | AE79: 662 | AF79: 240 | AG79: 827 | AH79: 921 | AI79: 290 | AJ79: 629 | AK79: 332 | AL79: 21231 | AM79: 0.05931089241 | AN79: 97.51232557 | AO79: 78 | AP79: =(AL79/SUM(AL$2:AL$270)*1000000) -> 593.1089241 | AQ79: =LOG(AP79, 2) -> 9.212153269
A80: mir-1305p | B80: 365 | C80: 580 | D80: 395 | E80: 1162 | F80: 427 | G80: 527 | H80: 1136 | I80: 675 | J80: 520 | K80: 527 | L80: 840 | M80: 555 | N80: 254 | O80: 446 | P80: 1082 | Q80: 596 | R80: 684 | S80: 600 | T80: 783 | U80: 460 | V80: 411 | W80: 174 | X80: 337 | Y80: 425 | Z80: 833 | AA80: 641 | AB80: 289 | AC80: 772 | AD80: 423 | AE80: 650 | AF80: 226 | AG80: 1012 | AH80: 881 | AI80: 331 | AJ80: 706 | AK80: 346 | AL80: 21071 | AM80: 0.05886391663 | AN80: 97.57118948 | AO80: 79 | AP80: =(AL80/SUM(AL$2:AL$270)*1000000) -> 588.6391663 | AQ80: =LOG(AP80, 2) -> 9.201239728
A81: mir-10a | B81: 49 | C81: 2031 | D81: 233 | E81: 442 | F81: 380 | G81: 274 | H81: 2156 | I81: 277 | J81: 303 | K81: 404 | L81: 1061 | M81: 708 | N81: 333 | O81: 601 | P81: 209 | Q81: 131 | R81: 971 | S81: 265 | T81: 64 | U81: 462 | V81: 225 | W81: 169 | X81: 231 | Y81: 292 | Z81: 1223 | AA81: 732 | AB81: 82 | AC81: 163 | AD81: 449 | AE81: 624 | AF81: 416 | AG81: 334 | AH81: 1769 | AI81: 601 | AJ81: 311 | AK81: 776 | AL81: 19751 | AM81: 0.05517636645 | AN81: 97.62636585 | AO81: 80 | AP81: =(AL81/SUM(AL$2:AL$270)*1000000) -> 551.7636645 | AQ81: =LOG(AP81, 2) -> 9.107906643
A82: ENSSSCG00000027451 | B82: 42 | C82: 930 | D82: 301 | E82: 261 | F82: 256 | G82: 138 | H82: 2352 | I82: 491 | J82: 349 | K82: 438 | L82: 1755 | M82: 2698 | N82: 97 | O82: 208 | P82: 350 | Q82: 188 | R82: 360 | S82: 65 | T82: 7 | U82: 1159 | V82: 124 | W82: 122 | X82: 56 | Y82: 47 | Z82: 1468 | AA82: 403 | AB82: 93 | AC82: 136 | AD82: 647 | AE82: 947 | AF82: 102 | AG82: 298 | AH82: 1505 | AI82: 441 | AJ82: 97 | AK82: 71 | AL82: 19002 | AM82: 0.05308396108 | AN82: 97.67944981 | AO82: 81 | AP82: =(AL82/SUM(AL$2:AL$270)*1000000) -> 530.8396108 | AQ82: =LOG(AP82, 2) -> 9.052132217
A83: mir-484 | B83: 516 | C83: 436 | D83: 540 | E83: 424 | F83: 576 | G83: 921 | H83: 411 | I83: 875 | J83: 474 | K83: 257 | L83: 825 | M83: 1139 | N83: 185 | O83: 433 | P83: 420 | Q83: 315 | R83: 233 | S83: 552 | T83: 291 | U83: 684 | V83: 277 | W83: 480 | X83: 373 | Y83: 696 | Z83: 452 | AA83: 206 | AB83: 274 | AC83: 585 | AD83: 433 | AE83: 484 | AF83: 475 | AG83: 727 | AH83: 1431 | AI83: 291 | AJ83: 355 | AK83: 370 | AL83: 18416 | AM83: 0.05144691228 | AN83: 97.73089672 | AO83: 82 | AP83: =(AL83/SUM(AL$2:AL$270)*1000000) -> 514.4691228 | AQ83: =LOG(AP83, 2) -> 9.006940682
A84: mir-106a | B84: 337 | C84: 921 | D84: 601 | E84: 222 | F84: 741 | G84: 910 | H84: 271 | I84: 752 | J84: 381 | K84: 284 | L84: 916 | M84: 2648 | N84: 136 | O84: 344 | P84: 503 | Q84: 338 | R84: 167 | S84: 439 | T84: 134 | U84: 894 | V84: 175 | W84: 716 | X84: 242 | Y84: 488 | Z84: 399 | AA84: 157 | AB84: 237 | AC84: 313 | AD84: 372 | AE84: 478 | AF84: 186 | AG84: 666 | AH84: 1142 | AI84: 290 | AJ84: 250 | AK84: 264 | AL84: 18314 | AM84: 0.05116196522 | AN84: 97.78205869 | AO84: 83 | AP84: =(AL84/SUM(AL$2:AL$270)*1000000) -> 511.6196522 | AQ84: =LOG(AP84, 2) -> 8.998927872
A85: mir-2478 | B85: 708 | C85: 1086 | D85: 247 | E85: 189 | F85: 550 | G85: 442 | H85: 543 | I85: 379 | J85: 230 | K85: 222 | L85: 1306 | M85: 1571 | N85: 180 | O85: 172 | P85: 1134 | Q85: 287 | R85: 143 | S85: 473 | T85: 2434 | U85: 546 | V85: 570 | W85: 455 | X85: 249 | Y85: 866 | Z85: 504 | AA85: 270 | AB85: 116 | AC85: 311 | AD85: 137 | AE85: 321 | AF85: 146 | AG85: 487 | AH85: 387 | AI85: 86 | AJ85: 338 | AK85: 126 | AL85: 18211 | AM85: 0.05087422456 | AN85: 97.83293291 | AO85: 84 | AP85: =(AL85/SUM(AL$2:AL$270)*1000000) -> 508.7422456 | AQ85: =LOG(AP85, 2) -> 8.990791089
A86: mir-125a | B86: 168 | C86: 2259 | D86: 488 | E86: 290 | F86: 440 | G86: 417 | H86: 1080 | I86: 483 | J86: 294 | K86: 189 | L86: 1057 | M86: 1161 | N86: 267 | O86: 462 | P86: 179 | Q86: 98 | R86: 347 | S86: 294 | T86: 106 | U86: 645 | V86: 158 | W86: 349 | X86: 158 | Y86: 340 | Z86: 675 | AA86: 273 | AB86: 141 | AC86: 133 | AD86: 260 | AE86: 360 | AF86: 429 | AG86: 369 | AH86: 2444 | AI86: 509 | AJ86: 219 | AK86: 616 | AL86: 18157 | AM86: 0.05072337024 | AN86: 97.88365628 | AO86: 85 | AP86: =(AL86/SUM(AL$2:AL$270)*1000000) -> 507.2337024 | AQ86: =LOG(AP86, 2) -> 8.986506796
A87: mir-6529a | B87: 345 | C87: 789 | D87: 291 | E87: 633 | F87: 251 | G87: 318 | H87: 1194 | I87: 616 | J87: 558 | K87: 528 | L87: 783 | M87: 968 | N87: 135 | O87: 356 | P87: 949 | Q87: 440 | R87: 619 | S87: 278 | T87: 739 | U87: 362 | V87: 421 | W87: 143 | X87: 215 | Y87: 233 | Z87: 841 | AA87: 533 | AB87: 248 | AC87: 649 | AD87: 410 | AE87: 640 | AF87: 207 | AG87: 560 | AH87: 755 | AI87: 330 | AJ87: 443 | AK87: 205 | AL87: 17985 | AM87: 0.05024287127 | AN87: 97.93389915 | AO87: 86 | AP87: =(AL87/SUM(AL$2:AL$270)*1000000) -> 502.4287127 | AQ87: =LOG(AP87, 2) -> 8.972775103
A88: mir-425-5p | B88: 220 | C88: 742 | D88: 399 | E88: 403 | F88: 580 | G88: 788 | H88: 547 | I88: 636 | J88: 395 | K88: 302 | L88: 750 | M88: 1676 | N88: 197 | O88: 514 | P88: 531 | Q88: 365 | R88: 314 | S88: 445 | T88: 165 | U88: 566 | V88: 256 | W88: 379 | X88: 445 | Y88: 486 | Z88: 501 | AA88: 264 | AB88: 188 | AC88: 442 | AD88: 431 | AE88: 633 | AF88: 316 | AG88: 528 | AH88: 932 | AI88: 303 | AJ88: 406 | AK88: 347 | AL88: 17392 | AM88: 0.04858626729 | AN88: 97.98248542 | AO88: 87 | AP88: =(AL88/SUM(AL$2:AL$270)*1000000) -> 485.8626729 | AQ88: =LOG(AP88, 2) -> 8.924404789
A89: mir-424-3p | B89: 336 | C89: 249 | D89: 377 | E89: 590 | F89: 604 | G89: 678 | H89: 645 | I89: 731 | J89: 517 | K89: 440 | L89: 760 | M89: 831 | N89: 187 | O89: 432 | P89: 708 | Q89: 267 | R89: 282 | S89: 407 | T89: 386 | U89: 584 | V89: 387 | W89: 438 | X89: 239 | Y89: 427 | Z89: 598 | AA89: 355 | AB89: 208 | AC89: 673 | AD89: 376 | AE89: 626 | AF89: 286 | AG89: 817 | AH89: 982 | AI89: 286 | AJ89: 421 | AK89: 245 | AL89: 17375 | AM89: 0.04853877611 | AN89: 0.04853877611 | AO89: 88 | AP89: =(AL89/SUM(AL$2:AL$270)*1000000) -> 485.3877611 | AQ89: =LOG(AP89, 2) -> 8.922993922
A90: mir-340 | B90: 266 | C90: 512 | D90: 280 | E90: 480 | F90: 464 | G90: 646 | H90: 868 | I90: 637 | J90: 385 | K90: 407 | L90: 1007 | M90: 1246 | N90: 210 | O90: 422 | P90: 435 | Q90: 353 | R90: 406 | S90: 492 | T90: 185 | U90: 508 | V90: 175 | W90: 229 | X90: 359 | Y90: 443 | Z90: 543 | AA90: 295 | AB90: 187 | AC90: 401 | AD90: 413 | AE90: 691 | AF90: 265 | AG90: 502 | AH90: 922 | AI90: 313 | AJ90: 319 | AK90: 356 | AL90: 16622 | AM90: 0.04643519635 | AN90: 0.09497397246 | AO90: 89 | AP90: =(AL90/SUM(AL$2:AL$270)*1000000) -> 464.3519635 | AQ90: =LOG(AP90, 2) -> 8.859074925
A91: mir-18a | B91: 273 | C91: 561 | D91: 461 | E91: 195 | F91: 654 | G91: 788 | H91: 222 | I91: 527 | J91: 277 | K91: 271 | L91: 742 | M91: 1765 | N91: 83 | O91: 267 | P91: 451 | Q91: 331 | R91: 159 | S91: 483 | T91: 105 | U91: 827 | V91: 119 | W91: 517 | X91: 189 | Y91: 461 | Z91: 371 | AA91: 181 | AB91: 189 | AC91: 265 | AD91: 286 | AE91: 527 | AF91: 143 | AG91: 605 | AH91: 854 | AI91: 217 | AJ91: 223 | AK91: 221 | AL91: 14810 | AM91: 0.04137319564 | AN91: 0.1363471681 | AO91: 90 | AP91: =(AL91/SUM(AL$2:AL$270)*1000000) -> 413.7319564 | AQ91: =LOG(AP91, 2) -> 8.692552584
A92: mir-921-5p | B92: 349 | C92: 393 | D92: 252 | E92: 532 | F92: 430 | G92: 561 | H92: 638 | I92: 686 | J92: 511 | K92: 260 | L92: 645 | M92: 802 | N92: 177 | O92: 431 | P92: 650 | Q92: 158 | R92: 328 | S92: 256 | T92: 331 | U92: 322 | V92: 344 | W92: 266 | X92: 200 | Y92: 390 | Z92: 350 | AA92: 302 | AB92: 153 | AC92: 519 | AD92: 306 | AE92: 411 | AF92: 277 | AG92: 532 | AH92: 770 | AI92: 246 | AJ92: 254 | AK92: 254 | AL92: 14286 | AM92: 0.03990934996 | AN92: 0.1762565181 | AO92: 91 | AP92: =(AL92/SUM(AL$2:AL$270)*1000000) -> 399.0934996 | AQ92: =LOG(AP92, 2) -> 8.64058297
A93: mir-1935p | B93: 375 | C93: 929 | D93: 594 | E93: 223 | F93: 515 | G93: 453 | H93: 298 | I93: 516 | J93: 301 | K93: 298 | L93: 575 | M93: 1122 | N93: 106 | O93: 370 | P93: 486 | Q93: 126 | R93: 141 | S93: 358 | T93: 278 | U93: 733 | V93: 255 | W93: 455 | X93: 176 | Y93: 360 | Z93: 371 | AA93: 220 | AB93: 181 | AC93: 227 | AD93: 295 | AE93: 448 | AF93: 280 | AG93: 444 | AH93: 913 | AI93: 239 | AJ93: 309 | AK93: 272 | AL93: 14242 | AM93: 0.03978643162 | AN93: 0.2160429497 | AO93: 92 | AP93: =(AL93/SUM(AL$2:AL$270)*1000000) -> 397.8643162 | AQ93: =LOG(AP93, 2) -> 8.636132702
A94: mir-30e-3p | B94: 194 | C94: 371 | D94: 291 | E94: 410 | F94: 580 | G94: 568 | H94: 466 | I94: 485 | J94: 286 | K94: 274 | L94: 702 | M94: 783 | N94: 205 | O94: 431 | P94: 562 | Q94: 405 | R94: 301 | S94: 461 | T94: 140 | U94: 469 | V94: 185 | W94: 360 | X94: 319 | Y94: 390 | Z94: 429 | AA94: 315 | AB94: 223 | AC94: 273 | AD94: 306 | AE94: 411 | AF94: 258 | AG94: 696 | AH94: 652 | AI94: 211 | AJ94: 512 | AK94: 298 | AL94: 14222 | AM94: 0.03973055965 | AN94: 0.2557735093 | AO94: 93 | AP94: =(AL94/SUM(AL$2:AL$270)*1000000) -> 397.3055965 | AQ94: =LOG(AP94, 2) -> 8.634105305
A95: mir-3607-3p | B95: 208 | C95: 233 | D95: 79 | E95: 300 | F95: 503 | G95: 125 | H95: 234 | I95: 323 | J95: 329 | K95: 755 | L95: 596 | M95: 157 | N95: 140 | O95: 231 | P95: 806 | Q95: 755 | R95: 429 | S95: 419 | T95: 719 | U95: 210 | V95: 448 | W95: 133 | X95: 379 | Y95: 95 | Z95: 445 | AA95: 417 | AB95: 416 | AC95: 572 | AD95: 417 | AE95: 352 | AF95: 143 | AG95: 1047 | AH95: 176 | AI95: 128 | AJ95: 934 | AK95: 164 | AL95: 13817 | AM95: 0.0385991522 | AN95: 0.2943726615 | AO95: 94 | AP95: =(AL95/SUM(AL$2:AL$270)*1000000) -> 385.991522 | AQ95: =LOG(AP95, 2) -> 8.59242535
A96: mir-3607-5p | B96: 102 | C96: 266 | D96: 72 | E96: 464 | F96: 155 | G96: 84 | H96: 56 | I96: 164 | J96: 93 | K96: 651 | L96: 191 | M96: 328 | N96: 193 | O96: 62 | P96: 178 | Q96: 1001 | R96: 471 | S96: 689 | T96: 856 | U96: 105 | V96: 111 | W96: 110 | X96: 513 | Y96: 49 | Z96: 568 | AA96: 423 | AB96: 574 | AC96: 626 | AD96: 758 | AE96: 107 | AF96: 315 | AG96: 1287 | AH96: 157 | AI96: 483 | AJ96: 869 | AK96: 353 | AL96: 13484 | AM96: 0.03766888386 | AN96: 0.3320415454 | AO96: 95 | AP96: =(AL96/SUM(AL$2:AL$270)*1000000) -> 376.6888386 | AQ96: =LOG(AP96, 2) -> 8.557229476
A97: mir-330 | B97: 333 | C97: 745 | D97: 306 | E97: 315 | F97: 405 | G97: 490 | H97: 523 | I97: 389 | J97: 296 | K97: 282 | L97: 587 | M97: 955 | N97: 152 | O97: 368 | P97: 611 | Q97: 405 | R97: 277 | S97: 368 | T97: 357 | U97: 340 | V97: 240 | W97: 211 | X97: 221 | Y97: 296 | Z97: 446 | AA97: 226 | AB97: 186 | AC97: 303 | AD97: 260 | AE97: 363 | AF97: 217 | AG97: 504 | AH97: 559 | AI97: 170 | AJ97: 353 | AK97: 182 | AL97: 13241 | AM97: 0.0369900394 | AN97: 0.3690315848 | AO97: 96 | AP97: =(AL97/SUM(AL$2:AL$270)*1000000) -> 369.900394 | AQ97: =LOG(AP97, 2) -> 8.530993027
A98: le7c | B98: 53 | C98: 987 | D98: 195 | E98: 281 | F98: 186 | G98: 192 | H98: 2185 | I98: 417 | J98: 281 | K98: 168 | L98: 579 | M98: 397 | N98: 211 | O98: 300 | P98: 148 | Q98: 52 | R98: 346 | S98: 135 | T98: 40 | U98: 336 | V98: 153 | W98: 97 | X98: 86 | Y98: 187 | Z98: 776 | AA98: 335 | AB98: 49 | AC98: 105 | AD98: 193 | AE98: 390 | AF98: 377 | AG98: 186 | AH98: 1266 | AI98: 388 | AJ98: 108 | AK98: 440 | AL98: 12625 | AM98: 0.03526918264 | AN98: 0.4043007674 | AO98: 97 | AP98: =(AL98/SUM(AL$2:AL$270)*1000000) -> 352.6918264 | AQ98: =LOG(AP98, 2) -> 8.462264332
A99: mir-7134-5p | B99: 192 | C99: 578 | D99: 293 | E99: 377 | F99: 305 | G99: 320 | H99: 727 | I99: 423 | J99: 292 | K99: 289 | L99: 497 | M99: 641 | N99: 131 | O99: 375 | P99: 434 | Q99: 322 | R99: 275 | S99: 241 | T99: 229 | U99: 320 | V99: 250 | W99: 144 | X99: 208 | Y99: 222 | Z99: 458 | AA99: 287 | AB99: 197 | AC99: 323 | AD99: 324 | AE99: 377 | AF99: 167 | AG99: 339 | AH99: 478 | AI99: 148 | AJ99: 346 | AK99: 169 | AL99: 11698 | AM99: 0.03267951672 | AN99: 0.4369802841 | AO99: 98 | AP99: =(AL99/SUM(AL$2:AL$270)*1000000) -> 326.7951672 | AQ99: =LOG(AP99, 2) -> 8.352242838
A100: mir-96-5p | B100: 84 | C100: 322 | D100: 171 | E100: 221 | F100: 379 | G100: 557 | H100: 370 | I100: 356 | J100: 147 | K100: 231 | L100: 478 | M100: 1207 | N100: 147 | O100: 251 | P100: 282 | Q100: 267 | R100: 323 | S100: 339 | T100: 59 | U100: 300 | V100: 81 | W100: 187 | X100: 438 | Y100: 447 | Z100: 348 | AA100: 230 | AB100: 102 | AC100: 269 | AD100: 295 | AE100: 490 | AF100: 174 | AG100: 413 | AH100: 635 | AI100: 217 | AJ100: 248 | AK100: 275 | AL100: 11340 | AM100: 0.03167940841 | AN100: 0.4686596926 | AO100: 99 | AP100: =(AL100/SUM(AL$2:AL$270)*1000000) -> 316.7940841 | AQ100: =LOG(AP100, 2) -> 8.307401584
A101: mir-210 | B101: 133 | C101: 571 | D101: 237 | E101: 181 | F101: 406 | G101: 449 | H101: 330 | I101: 321 | J101: 168 | K101: 195 | L101: 555 | M101: 1204 | N101: 137 | O101: 261 | P101: 313 | Q101: 262 | R101: 206 | S101: 402 | T101: 55 | U101: 461 | V101: 81 | W101: 323 | X101: 233 | Y101: 396 | Z101: 293 | AA101: 158 | AB101: 115 | AC101: 220 | AD101: 183 | AE101: 356 | AF101: 220 | AG101: 456 | AH101: 692 | AI101: 177 | AJ101: 243 | AK101: 265 | AL101: 11258 | AM101: 0.03145033332 | AN101: 0.5001100259 | AO101: 100 | AP101: =(AL101/SUM(AL$2:AL$270)*1000000) -> 314.5033332 | AQ101: =LOG(AP101, 2) -> 8.296931497
A102: mir-143-3p | B102: 4 | C102: 40 | D102: 9 | E102: 37 | F102: 14 | G102: 64 | H102: 1719 | I102: 22 | J102: 15 | K102: 30 | L102: 55 | M102: 53 | N102: 215 | O102: 100 | P102: 13 | Q102: 14 | R102: 115 | S102: 1405 | T102: 13 | U102: 27 | V102: 4 | W102: 8 | X102: 57 | Y102: 250 | Z102: 1492 | AA102: 1781 | AB102: 7 | AC102: 13 | AD102: 16 | AE102: 35 | AF102: 418 | AG102: 14 | AH102: 156 | AI102: 47 | AJ102: 964 | AK102: 1445 | AL102: 10671 | AM102: 0.02981049093 | AN102: 0.5299205168 | AO102: 101 | AP102: =(AL102/SUM(AL$2:AL$270)*1000000) -> 298.1049093 | AQ102: =LOG(AP102, 2) -> 8.219676324
A103: mir-152 | B103: 59 | C103: 389 | D103: 255 | E103: 268 | F103: 396 | G103: 388 | H103: 419 | I103: 262 | J103: 97 | K103: 197 | L103: 448 | M103: 412 | N103: 99 | O103: 212 | P103: 741 | Q103: 530 | R103: 171 | S103: 350 | T103: 46 | U103: 337 | V103: 106 | W103: 273 | X103: 261 | Y103: 312 | Z103: 266 | AA103: 172 | AB103: 103 | AC103: 213 | AD103: 167 | AE103: 331 | AF103: 132 | AG103: 913 | AH103: 488 | AI103: 151 | AJ103: 221 | AK103: 273 | AL103: 10458 | AM103: 0.02921545442 | AN103: 0.5591359712 | AO103: 102 | AP103: =(AL103/SUM(AL$2:AL$270)*1000000) -> 292.1545442 | AQ103: =LOG(AP103, 2) -> 8.190587919
A104: le7d-5p | B104: 119 | C104: 726 | D104: 268 | E104: 225 | F104: 187 | G104: 277 | H104: 772 | I104: 413 | J104: 211 | K104: 169 | L104: 570 | M104: 528 | N104: 144 | O104: 256 | P104: 120 | Q104: 42 | R104: 232 | S104: 158 | T104: 72 | U104: 388 | V104: 145 | W104: 151 | X104: 84 | Y104: 187 | Z104: 407 | AA104: 166 | AB104: 64 | AC104: 150 | AD104: 163 | AE104: 336 | AF104: 232 | AG104: 132 | AH104: 1483 | AI104: 346 | AJ104: 95 | AK104: 331 | AL104: 10349 | AM104: 0.02891095217 | AN104: 0.5880469234 | AO104: 103 | AP104: =(AL104/SUM(AL$2:AL$270)*1000000) -> 289.1095217 | AQ104: =LOG(AP104, 2) -> 8.175472314
A105: mir-222 | B105: 108 | C105: 185 | D105: 149 | E105: 217 | F105: 309 | G105: 369 | H105: 310 | I105: 273 | J105: 231 | K105: 205 | L105: 237 | M105: 271 | N105: 69 | O105: 233 | P105: 587 | Q105: 439 | R105: 184 | S105: 176 | T105: 295 | U105: 236 | V105: 81 | W105: 342 | X105: 428 | Y105: 588 | Z105: 227 | AA105: 107 | AB105: 119 | AC105: 249 | AD105: 228 | AE105: 234 | AF105: 164 | AG105: 1149 | AH105: 641 | AI105: 140 | AJ105: 323 | AK105: 220 | AL105: 10323 | AM105: 0.02883831861 | AN105: 0.616885242 | AO105: 104 | AP105: =(AL105/SUM(AL$2:AL$270)*1000000) -> 288.3831861 | AQ105: =LOG(AP105, 2) -> 8.171843242
A106: mir-140-5p | B106: 165 | C106: 393 | D106: 266 | E106: 159 | F106: 502 | G106: 481 | H106: 203 | I106: 313 | J106: 154 | K106: 207 | L106: 530 | M106: 1044 | N106: 91 | O106: 211 | P106: 264 | Q106: 171 | R106: 131 | S106: 382 | T106: 48 | U106: 495 | V106: 76 | W106: 426 | X106: 189 | Y106: 409 | Z106: 254 | AA106: 151 | AB106: 119 | AC106: 189 | AD106: 188 | AE106: 377 | AF106: 168 | AG106: 412 | AH106: 552 | AI106: 153 | AJ106: 206 | AK106: 206 | AL106: 10285 | AM106: 0.02873216186 | AN106: 0.6456174039 | AO106: 105 | AP106: =(AL106/SUM(AL$2:AL$270)*1000000) -> 287.3216186 | AQ106: =LOG(AP106, 2) -> 8.166522738
A107: mir-449a | B107: 24 | C107: 133 | D107: 107 | E107: 164 | F107: 229 | G107: 134 | H107: 1099 | I107: 412 | J107: 275 | K107: 288 | L107: 605 | M107: 716 | N107: 39 | O107: 77 | P107: 69 | Q107: 62 | R107: 423 | S107: 35 | T107: 6 | U107: 267 | V107: 38 | W107: 63 | X107: 65 | Y107: 75 | Z107: 561 | AA107: 140 | AB107: 65 | AC107: 115 | AD107: 425 | AE107: 654 | AF107: 104 | AG107: 116 | AH107: 2048 | AI107: 447 | AJ107: 33 | AK107: 40 | AL107: 10153 | AM107: 0.02836340684 | AN107: 0.6739808107 | AO107: 106 | AP107: =(AL107/SUM(AL$2:AL$270)*1000000) -> 283.6340684 | AQ107: =LOG(AP107, 2) -> 8.147887021
A108: mir-303p | B108: 50 | C108: 507 | D108: 154 | E108: 326 | F108: 172 | G108: 88 | H108: 1169 | I108: 246 | J108: 140 | K108: 269 | L108: 745 | M108: 559 | N108: 110 | O108: 145 | P108: 253 | Q108: 168 | R108: 297 | S108: 160 | T108: 46 | U108: 366 | V108: 110 | W108: 57 | X108: 83 | Y108: 84 | Z108: 892 | AA108: 461 | AB108: 78 | AC108: 135 | AD108: 249 | AE108: 306 | AF108: 138 | AG108: 263 | AH108: 581 | AI108: 199 | AJ108: 208 | AK108: 168 | AL108: 9982 | AM108: 0.02788570148 | AN108: 0.7018665122 | AO108: 107 | AP108: =(AL108/SUM(AL$2:AL$270)*1000000) -> 278.8570148 | AQ108: =LOG(AP108, 2) -> 8.123381753
A109: mir-7641 | B109: 172 | C109: 190 | D109: 174 | E109: 104 | F109: 243 | G109: 162 | H109: 231 | I109: 220 | J109: 169 | K109: 627 | L109: 307 | M109: 107 | N109: 130 | O109: 289 | P109: 645 | Q109: 242 | R109: 252 | S109: 232 | T109: 571 | U109: 130 | V109: 261 | W109: 113 | X109: 166 | Y109: 217 | Z109: 486 | AA109: 518 | AB109: 147 | AC109: 384 | AD109: 157 | AE109: 300 | AF109: 115 | AG109: 372 | AH109: 147 | AI109: 66 | AJ109: 490 | AK109: 126 | AL109: 9262 | AM109: 0.02587431047 | AN109: 0.7277408227 | AO109: 108 | AP109: =(AL109/SUM(AL$2:AL$270)*1000000) -> 258.7431047 | AQ109: =LOG(AP109, 2) -> 8.015376606
A110: mir-1291 | B110: 205 | C110: 94 | D110: 235 | E110: 452 | F110: 216 | G110: 246 | H110: 365 | I110: 281 | J110: 199 | K110: 351 | L110: 385 | M110: 55 | N110: 190 | O110: 293 | P110: 233 | Q110: 132 | R110: 229 | S110: 270 | T110: 187 | U110: 183 | V110: 480 | W110: 102 | X110: 262 | Y110: 228 | Z110: 360 | AA110: 180 | AB110: 162 | AC110: 358 | AD110: 368 | AE110: 398 | AF110: 291 | AG110: 319 | AH110: 346 | AI110: 115 | AJ110: 203 | AK110: 176 | AL110: 9149 | AM110: 0.02555863382 | AN110: 0.7532994565 | AO110: 109 | AP110: =(AL110/SUM(AL$2:AL$270)*1000000) -> 255.5863382 | AQ110: =LOG(AP110, 2) -> 7.997666912
A111: mir-7857 | B111: 215 | C111: 312 | D111: 257 | E111: 188 | F111: 324 | G111: 365 | H111: 292 | I111: 399 | J111: 210 | K111: 214 | L111: 401 | M111: 749 | N111: 66 | O111: 146 | P111: 254 | Q111: 149 | R111: 177 | S111: 217 | T111: 115 | U111: 455 | V111: 127 | W111: 265 | X111: 145 | Y111: 250 | Z111: 336 | AA111: 151 | AB111: 116 | AC111: 189 | AD111: 207 | AE111: 372 | AF111: 115 | AG111: 241 | AH111: 613 | AI111: 160 | AJ111: 193 | AK111: 134 | AL111: 9119 | AM111: 0.02547482586 | AN111: 0.7787742823 | AO111: 110 | AP111: =(AL111/SUM(AL$2:AL$270)*1000000) -> 254.7482586 | AQ111: =LOG(AP111, 2) -> 7.992928474
A112: mir-339-5p | B112: 131 | C112: 318 | D112: 164 | E112: 72 | F112: 388 | G112: 524 | H112: 111 | I112: 340 | J112: 127 | K112: 77 | L112: 475 | M112: 1638 | N112: 80 | O112: 131 | P112: 140 | Q112: 99 | R112: 65 | S112: 335 | T112: 32 | U112: 425 | V112: 21 | W112: 330 | X112: 181 | Y112: 493 | Z112: 154 | AA112: 89 | AB112: 78 | AC112: 109 | AD112: 103 | AE112: 215 | AF112: 178 | AG112: 215 | AH112: 639 | AI112: 115 | AJ112: 133 | AK112: 217 | AL112: 8942 | AM112: 0.02498035891 | AN112: 0.8037546412 | AO112: 111 | AP112: =(AL112/SUM(AL$2:AL$270)*1000000) -> 249.8035891 | AQ112: =LOG(AP112, 2) -> 7.964650395
A113: mir-375 | B113: 49 | C113: 336 | D113: 127 | E113: 195 | F113: 193 | G113: 133 | H113: 870 | I113: 225 | J113: 210 | K113: 337 | L113: 594 | M113: 578 | N113: 53 | O113: 99 | P113: 382 | Q113: 188 | R113: 336 | S113: 116 | T113: 66 | U113: 287 | V113: 86 | W113: 127 | X113: 65 | Y113: 115 | Z113: 565 | AA113: 223 | AB113: 84 | AC113: 144 | AD113: 238 | AE113: 335 | AF113: 98 | AG113: 258 | AH113: 721 | AI113: 175 | AJ113: 132 | AK113: 73 | AL113: 8813 | AM113: 0.02461998468 | AN113: 0.8283746259 | AO113: 112 | AP113: =(AL113/SUM(AL$2:AL$270)*1000000) -> 246.1998468 | AQ113: =LOG(AP113, 2) -> 7.943686054
A114: mir-3785p | B114: 103 | C114: 254 | D114: 190 | E114: 149 | F114: 394 | G114: 468 | H114: 166 | I114: 368 | J114: 181 | K114: 132 | L114: 419 | M114: 904 | N114: 139 | O114: 232 | P114: 267 | Q114: 170 | R114: 148 | S114: 242 | T114: 54 | U114: 280 | V114: 85 | W114: 237 | X114: 196 | Y114: 337 | Z114: 157 | AA114: 114 | AB114: 110 | AC114: 215 | AD114: 214 | AE114: 272 | AF114: 168 | AG114: 363 | AH114: 531 | AI114: 152 | AJ114: 183 | AK114: 202 | AL114: 8796 | AM114: 0.02457249351 | AN114: 0.8529471194 | AO114: 113 | AP114: =(AL114/SUM(AL$2:AL$270)*1000000) -> 245.7249351 | AQ114: =LOG(AP114, 2) -> 7.940900453
A115: mir-343p | B115: 10 | C115: 392 | D115: 113 | E115: 108 | F115: 136 | G115: 64 | H115: 983 | I115: 273 | J115: 201 | K115: 250 | L115: 832 | M115: 1142 | N115: 65 | O115: 144 | P115: 181 | Q115: 102 | R115: 242 | S115: 33 | T115: 3 | U115: 426 | V115: 65 | W115: 57 | X115: 37 | Y115: 23 | Z115: 769 | AA115: 200 | AB115: 71 | AC115: 54 | AD115: 266 | AE115: 474 | AF115: 74 | AG115: 124 | AH115: 526 | AI115: 205 | AJ115: 82 | AK115: 41 | AL115: 8768 | AM115: 0.02449427275 | AN115: 0.8774413922 | AO115: 114 | AP115: =(AL115/SUM(AL$2:AL$270)*1000000) -> 244.9427275 | AQ115: =LOG(AP115, 2) -> 7.936300647
A116: mir-499-5p | B116: 142 | C116: 318 | D116: 348 | E116: 175 | F116: 396 | G116: 524 | H116: 271 | I116: 393 | J116: 220 | K116: 101 | L116: 352 | M116: 737 | N116: 103 | O116: 252 | P116: 247 | Q116: 142 | R116: 135 | S116: 332 | T116: 54 | U116: 376 | V116: 63 | W116: 277 | X116: 134 | Y116: 309 | Z116: 181 | AA116: 110 | AB116: 119 | AC116: 192 | AD116: 132 | AE116: 215 | AF116: 130 | AG116: 286 | AH116: 476 | AI116: 146 | AJ116: 180 | AK116: 181 | AL116: 8749 | AM116: 0.02444119437 | AN116: 0.9018825866 | AO116: 115 | AP116: =(AL116/SUM(AL$2:AL$270)*1000000) -> 244.4119437 | AQ116: =LOG(AP116, 2) -> 7.933170977
A117: mir-455-5p | B117: 65 | C117: 688 | D117: 224 | E117: 349 | F117: 219 | G117: 355 | H117: 480 | I117: 219 | J117: 204 | K117: 125 | L117: 478 | M117: 665 | N117: 49 | O117: 168 | P117: 379 | Q117: 257 | R117: 224 | S117: 164 | T117: 90 | U117: 189 | V117: 144 | W117: 100 | X117: 151 | Y117: 196 | Z117: 336 | AA117: 210 | AB117: 77 | AC117: 106 | AD117: 216 | AE117: 342 | AF117: 69 | AG117: 358 | AH117: 205 | AI117: 124 | AJ117: 133 | AK117: 100 | AL117: 8458 | AM117: 0.02362825717 | AN117: 0.9255108437 | AO117: 116 | AP117: =(AL117/SUM(AL$2:AL$270)*1000000) -> 236.2825717 | AQ117: =LOG(AP117, 2) -> 7.884369409
A118: mir-32 | B118: 100 | C118: 280 | D118: 137 | E118: 93 | F118: 326 | G118: 207 | H118: 227 | I118: 194 | J118: 100 | K118: 186 | L118: 501 | M118: 1480 | N118: 48 | O118: 107 | P118: 249 | Q118: 173 | R118: 122 | S118: 312 | T118: 68 | U118: 412 | V118: 32 | W118: 161 | X118: 166 | Y118: 348 | Z118: 356 | AA118: 239 | AB118: 81 | AC118: 123 | AD118: 121 | AE118: 255 | AF118: 76 | AG118: 290 | AH118: 416 | AI118: 103 | AJ118: 152 | AK118: 79 | AL118: 8320 | AM118: 0.02324274056 | AN118: 0.9487535843 | AO118: 117 | AP118: =(AL118/SUM(AL$2:AL$270)*1000000) -> 232.4274056 | AQ118: =LOG(AP118, 2) -> 7.860636377
A119: mir-181a | B119: 25 | C119: 1253 | D119: 122 | E119: 133 | F119: 199 | G119: 169 | H119: 500 | I119: 120 | J119: 71 | K119: 159 | L119: 494 | M119: 448 | N119: 161 | O119: 214 | P119: 108 | Q119: 45 | R119: 227 | S119: 166 | T119: 32 | U119: 222 | V119: 54 | W119: 93 | X119: 95 | Y119: 143 | Z119: 370 | AA119: 187 | AB119: 34 | AC119: 67 | AD119: 158 | AE119: 257 | AF119: 196 | AG119: 160 | AH119: 764 | AI119: 222 | AJ119: 129 | AK119: 371 | AL119: 8168 | AM119: 0.02281811357 | AN119: 0.9715716979 | AO119: 118 | AP119: =(AL119/SUM(AL$2:AL$270)*1000000) -> 228.1811357 | AQ119: =LOG(AP119, 2) -> 7.834035715
A120: mir-29a | B120: 16 | C120: 286 | D120: 157 | E120: 167 | F120: 261 | G120: 275 | H120: 655 | I120: 146 | J120: 97 | K120: 105 | L120: 426 | M120: 626 | N120: 91 | O120: 90 | P120: 152 | Q120: 127 | R120: 173 | S120: 233 | T120: 5 | U120: 344 | V120: 38 | W120: 145 | X120: 144 | Y120: 287 | Z120: 465 | AA120: 177 | AB120: 42 | AC120: 91 | AD120: 173 | AE120: 292 | AF120: 157 | AG120: 223 | AH120: 683 | AI120: 161 | AJ120: 116 | AK120: 231 | AL120: 7857 | AM120: 0.0219493044 | AN120: 0.9935210023 | AO120: 119 | AP120: =(AL120/SUM(AL$2:AL$270)*1000000) -> 219.493044 | AQ120: =LOG(AP120, 2) -> 7.778031409
A121: mir-9 | B121: 14 | C121: 211 | D121: 79 | E121: 223 | F121: 54 | G121: 45 | H121: 866 | I121: 110 | J121: 86 | K121: 344 | L121: 710 | M121: 508 | N121: 49 | O121: 57 | P121: 92 | Q121: 101 | R121: 506 | S121: 42 | T121: 7 | U121: 290 | V121: 43 | W121: 27 | X121: 25 | Y121: 31 | Z121: 602 | AA121: 299 | AB121: 43 | AC121: 63 | AD121: 262 | AE121: 430 | AF121: 33 | AG121: 111 | AH121: 977 | AI121: 319 | AJ121: 40 | AK121: 55 | AL121: 7754 | AM121: 0.02166156374 | AN121: 1.015182566 | AO121: 120 | AP121: =(AL121/SUM(AL$2:AL$270)*1000000) -> 216.6156374 | AQ121: =LOG(AP121, 2) -> 7.758993584
A122: mir-302e | B122: 148 | C122: 341 | D122: 242 | E122: 129 | F122: 337 | G122: 270 | H122: 207 | I122: 265 | J122: 182 | K122: 136 | L122: 355 | M122: 607 | N122: 63 | O122: 190 | P122: 445 | Q122: 181 | R122: 94 | S122: 247 | T122: 112 | U122: 316 | V122: 62 | W122: 168 | X122: 101 | Y122: 199 | Z122: 210 | AA122: 130 | AB122: 132 | AC122: 159 | AD122: 170 | AE122: 224 | AF122: 105 | AG122: 385 | AH122: 303 | AI122: 89 | AJ122: 232 | AK122: 133 | AL122: 7669 | AM122: 0.02142410786 | AN122: 1.036606674 | AO122: 121 | AP122: =(AL122/SUM(AL$2:AL$270)*1000000) -> 214.2410786 | AQ122: =LOG(AP122, 2) -> 7.743091319
A123: mir-125b | B123: 50 | C123: 783 | D123: 135 | E123: 112 | F123: 154 | G123: 103 | H123: 861 | I123: 157 | J123: 108 | K123: 98 | L123: 397 | M123: 458 | N123: 117 | O123: 175 | P123: 82 | Q123: 44 | R123: 106 | S123: 169 | T123: 34 | U123: 297 | V123: 51 | W123: 101 | X123: 36 | Y123: 124 | Z123: 598 | AA123: 266 | AB123: 49 | AC123: 55 | AD123: 105 | AE123: 156 | AF123: 241 | AG123: 141 | AH123: 781 | AI123: 144 | AJ123: 83 | AK123: 247 | AL123: 7618 | AM123: 0.02128163433 | AN123: 1.057888308 | AO123: 122 | AP123: =(AL123/SUM(AL$2:AL$270)*1000000) -> 212.8163433 | AQ123: =LOG(AP123, 2) -> 7.733465137
A124: mir-361-3p | B124: 86 | C124: 292 | D124: 119 | E124: 249 | F124: 286 | G124: 233 | H124: 383 | I124: 240 | J124: 175 | K124: 233 | L124: 372 | M124: 392 | N124: 168 | O124: 216 | P124: 377 | Q124: 292 | R124: 225 | S124: 292 | T124: 97 | U124: 87 | V124: 56 | W124: 93 | X124: 199 | Y124: 164 | Z124: 193 | AA124: 166 | AB124: 86 | AC124: 164 | AD124: 112 | AE124: 130 | AF124: 118 | AG124: 246 | AH124: 182 | AI124: 58 | AJ124: 256 | AK124: 150 | AL124: 7187 | AM124: 0.02007759332 | AN124: 1.077965902 | AO124: 123 | AP124: =(AL124/SUM(AL$2:AL$270)*1000000) -> 200.7759332 | AQ124: =LOG(AP124, 2) -> 7.649442535
A125: le7e | B125: 37 | C125: 751 | D125: 128 | E125: 128 | F125: 116 | G125: 122 | H125: 594 | I125: 177 | J125: 114 | K125: 113 | L125: 380 | M125: 223 | N125: 131 | O125: 194 | P125: 58 | Q125: 28 | R125: 223 | S125: 63 | T125: 29 | U125: 219 | V125: 80 | W125: 103 | X125: 62 | Y125: 99 | Z125: 272 | AA125: 143 | AB125: 26 | AC125: 56 | AD125: 127 | AE125: 265 | AF125: 159 | AG125: 85 | AH125: 888 | AI125: 201 | AJ125: 76 | AK125: 253 | AL125: 6723 | AM125: 0.01878136356 | AN125: 1.096747265 | AO125: 124 | AP125: =(AL125/SUM(AL$2:AL$270)*1000000) -> 187.8136356 | AQ125: =LOG(AP125, 2) -> 7.553157999
A126: mir-335-3p | B126: 133 | C126: 105 | D126: 149 | E126: 166 | F126: 134 | G126: 246 | H126: 199 | I126: 183 | J126: 130 | K126: 190 | L126: 339 | M126: 345 | N126: 84 | O126: 104 | P126: 179 | Q126: 188 | R126: 189 | S126: 244 | T126: 130 | U126: 163 | V126: 78 | W126: 93 | X126: 134 | Y126: 193 | Z126: 174 | AA126: 152 | AB126: 95 | AC126: 209 | AD126: 142 | AE126: 192 | AF126: 89 | AG126: 280 | AH126: 389 | AI126: 122 | AJ126: 171 | AK126: 81 | AL126: 6194 | AM126: 0.01730354988 | AN126: 1.114050815 | AO126: 125 | AP126: =(AL126/SUM(AL$2:AL$270)*1000000) -> 173.0354988 | AQ126: =LOG(AP126, 2) -> 7.434924232
A127: mir-19a | B127: 75 | C127: 212 | D127: 175 | E127: 99 | F127: 260 | G127: 426 | H127: 133 | I127: 205 | J127: 104 | K127: 86 | L127: 266 | M127: 528 | N127: 64 | O127: 155 | P127: 108 | Q127: 106 | R127: 60 | S127: 221 | T127: 30 | U127: 245 | V127: 61 | W127: 233 | X127: 144 | Y127: 317 | Z127: 129 | AA127: 69 | AB127: 59 | AC127: 116 | AD127: 133 | AE127: 232 | AF127: 141 | AG127: 245 | AH127: 354 | AI127: 114 | AJ127: 98 | AK127: 136 | AL127: 6139 | AM127: 0.01714990196 | AN127: 1.131200717 | AO127: 126 | AP127: =(AL127/SUM(AL$2:AL$270)*1000000) -> 171.4990196 | AQ127: =LOG(AP127, 2) -> 7.422056519
A128: mir-1343 | B128: 158 | C128: 329 | D128: 163 | E128: 180 | F128: 133 | G128: 171 | H128: 216 | I128: 214 | J128: 133 | K128: 136 | L128: 286 | M128: 381 | N128: 67 | O128: 108 | P128: 163 | Q128: 115 | R128: 126 | S128: 167 | T128: 152 | U128: 193 | V128: 146 | W128: 95 | X128: 120 | Y128: 107 | Z128: 228 | AA128: 150 | AB128: 129 | AC128: 175 | AD128: 135 | AE128: 139 | AF128: 96 | AG128: 217 | AH128: 452 | AI128: 74 | AJ128: 167 | AK128: 69 | AL128: 6090 | AM128: 0.01701301563 | AN128: 1.148213733 | AO128: 127 | AP128: =(AL128/SUM(AL$2:AL$270)*1000000) -> 170.1301563 | AQ128: =LOG(AP128, 2) -> 7.410495077
A129: mir-23b | B129: 19 | C129: 546 | D129: 113 | E129: 58 | F129: 190 | G129: 223 | H129: 307 | I129: 172 | J129: 92 | K129: 58 | L129: 357 | M129: 711 | N129: 95 | O129: 160 | P129: 61 | Q129: 31 | R129: 109 | S129: 51 | T129: 10 | U129: 241 | V129: 35 | W129: 141 | X129: 62 | Y129: 118 | Z129: 185 | AA129: 57 | AB129: 32 | AC129: 43 | AD129: 95 | AE129: 267 | AF129: 167 | AG129: 74 | AH129: 651 | AI129: 180 | AJ129: 64 | AK129: 261 | AL129: 6036 | AM129: 0.0168621613 | AN129: 1.165075894 | AO129: 128 | AP129: =(AL129/SUM(AL$2:AL$270)*1000000) -> 168.621613 | AQ129: =LOG(AP129, 2) -> 7.397645655
A130: mir-421-3p | B130: 182 | C130: 259 | D130: 242 | E130: 97 | F130: 247 | G130: 292 | H130: 152 | I130: 331 | J130: 151 | K130: 111 | L130: 349 | M130: 627 | N130: 42 | O130: 114 | P130: 158 | Q130: 79 | R130: 83 | S130: 104 | T130: 62 | U130: 267 | V130: 90 | W130: 153 | X130: 60 | Y130: 125 | Z130: 115 | AA130: 51 | AB130: 66 | AC130: 121 | AD130: 101 | AE130: 203 | AF130: 87 | AG130: 135 | AH130: 423 | AI130: 95 | AJ130: 86 | AK130: 90 | AL130: 5950 | AM130: 0.01662191182 | AN130: 1.181697806 | AO130: 129 | AP130: =(AL130/SUM(AL$2:AL$270)*1000000) -> 166.2191182 | AQ130: =LOG(AP130, 2) -> 7.376942517
A131: mir-107 | B131: 109 | C131: 336 | D131: 194 | E131: 92 | F131: 217 | G131: 265 | H131: 160 | I131: 259 | J131: 107 | K131: 97 | L131: 304 | M131: 944 | N131: 59 | O131: 108 | P131: 87 | Q131: 71 | R131: 80 | S131: 83 | T131: 46 | U131: 298 | V131: 45 | W131: 115 | X131: 95 | Y131: 133 | Z131: 138 | AA131: 46 | AB131: 49 | AC131: 107 | AD131: 110 | AE131: 194 | AF131: 75 | AG131: 104 | AH131: 483 | AI131: 118 | AJ131: 56 | AK131: 94 | AL131: 5878 | AM131: 0.01642077272 | AN131: 1.198118578 | AO131: 130 | AP131: =(AL131/SUM(AL$2:AL$270)*1000000) -> 164.2077272 | AQ131: =LOG(AP131, 2) -> 7.359378208
A132: mir-3743p | B132: 50 | C132: 106 | D132: 100 | E132: 152 | F132: 262 | G132: 370 | H132: 215 | I132: 250 | J132: 133 | K132: 111 | L132: 293 | M132: 438 | N132: 77 | O132: 141 | P132: 186 | Q132: 163 | R132: 116 | S132: 174 | T132: 53 | U132: 133 | V132: 43 | W132: 98 | X132: 165 | Y132: 210 | Z132: 168 | AA132: 89 | AB132: 55 | AC132: 135 | AD132: 124 | AE132: 175 | AF132: 89 | AG132: 204 | AH132: 248 | AI132: 104 | AJ132: 110 | AK132: 101 | AL132: 5641 | AM132: 0.01575868984 | AN132: 1.213877268 | AO132: 131 | AP132: =(AL132/SUM(AL$2:AL$270)*1000000) -> 157.5868984 | AQ132: =LOG(AP132, 2) -> 7.300003786
A133: mir-149 | B133: 70 | C133: 216 | D133: 120 | E133: 101 | F133: 207 | G133: 248 | H133: 156 | I133: 165 | J133: 112 | K133: 135 | L133: 267 | M133: 376 | N133: 55 | O133: 167 | P133: 296 | Q133: 172 | R133: 73 | S133: 147 | T133: 76 | U133: 174 | V133: 77 | W133: 143 | X133: 131 | Y133: 169 | Z133: 147 | AA133: 106 | AB133: 77 | AC133: 147 | AD133: 186 | AE133: 214 | AF133: 76 | AG133: 243 | AH133: 227 | AI133: 81 | AJ133: 159 | AK133: 110 | AL133: 5626 | AM133: 0.01571678587 | AN133: 1.229594054 | AO133: 132 | AP133: =(AL133/SUM(AL$2:AL$270)*1000000) -> 157.1678587 | AQ133: =LOG(AP133, 2) -> 7.296162402
A134: mir-93-5p | B134: 112 | C134: 285 | D134: 179 | E134: 86 | F134: 253 | G134: 231 | H134: 109 | I134: 239 | J134: 118 | K134: 84 | L134: 328 | M134: 695 | N134: 47 | O134: 130 | P134: 156 | Q134: 104 | R134: 66 | S134: 127 | T134: 44 | U134: 226 | V134: 55 | W134: 179 | X134: 95 | Y134: 144 | Z134: 135 | AA134: 67 | AB134: 76 | AC134: 86 | AD134: 125 | AE134: 153 | AF134: 81 | AG134: 171 | AH134: 340 | AI134: 101 | AJ134: 94 | AK134: 100 | AL134: 5621 | AM134: 0.01570281787 | AN134: 1.245296872 | AO134: 133 | AP134: =(AL134/SUM(AL$2:AL$270)*1000000) -> 157.0281787 | AQ134: =LOG(AP134, 2) -> 7.294879664
A135: mir-1063p | B135: 83 | C135: 208 | D135: 175 | E135: 112 | F135: 242 | G135: 209 | H135: 169 | I135: 201 | J135: 128 | K135: 148 | L135: 270 | M135: 396 | N135: 73 | O135: 160 | P135: 212 | Q135: 143 | R135: 110 | S135: 160 | T135: 64 | U135: 240 | V135: 60 | W135: 144 | X135: 124 | Y135: 131 | Z135: 152 | AA135: 113 | AB135: 61 | AC135: 109 | AD135: 132 | AE135: 198 | AF135: 89 | AG135: 150 | AH135: 228 | AI135: 86 | AJ135: 166 | AK135: 117 | AL135: 5563 | AM135: 0.01554078915 | AN135: 1.260837661 | AO135: 134 | AP135: =(AL135/SUM(AL$2:AL$270)*1000000) -> 155.4078915 | AQ135: =LOG(AP135, 2) -> 7.279915955
A136: mir-378e | B136: 38 | C136: 193 | D136: 91 | E136: 156 | F136: 244 | G136: 181 | H136: 190 | I136: 164 | J136: 136 | K136: 126 | L136: 259 | M136: 368 | N136: 66 | O136: 121 | P136: 266 | Q136: 206 | R136: 144 | S136: 177 | T136: 85 | U136: 133 | V136: 84 | W136: 89 | X136: 149 | Y136: 153 | Z136: 160 | AA136: 123 | AB136: 82 | AC136: 139 | AD136: 98 | AE136: 195 | AF136: 80 | AG136: 223 | AH136: 207 | AI136: 88 | AJ136: 192 | AK136: 143 | AL136: 5549 | AM136: 0.01550167877 | AN136: 1.27633934 | AO136: 135 | AP136: =(AL136/SUM(AL$2:AL$270)*1000000) -> 155.0167877 | AQ136: =LOG(AP136, 2) -> 7.276280652
A137: mir-1 | B137: 48 | C137: 420 | D137: 80 | E137: 88 | F137: 285 | G137: 310 | H137: 291 | I137: 173 | J137: 71 | K137: 98 | L137: 228 | M137: 337 | N137: 45 | O137: 142 | P137: 407 | Q137: 291 | R137: 127 | S137: 136 | T137: 34 | U137: 107 | V137: 46 | W137: 105 | X137: 151 | Y137: 156 | Z137: 155 | AA137: 58 | AB137: 44 | AC137: 72 | AD137: 131 | AE137: 144 | AF137: 46 | AG137: 201 | AH137: 195 | AI137: 76 | AJ137: 75 | AK137: 74 | AL137: 5447 | AM137: 0.01521673171 | AN137: 1.291556072 | AO137: 136 | AP137: =(AL137/SUM(AL$2:AL$270)*1000000) -> 152.1673171 | AQ137: =LOG(AP137, 2) -> 7.249514716
A138: mir-378g | B138: 51 | C138: 187 | D138: 87 | E138: 152 | F138: 191 | G138: 161 | H138: 238 | I138: 133 | J138: 123 | K138: 116 | L138: 281 | M138: 382 | N138: 76 | O138: 138 | P138: 235 | Q138: 182 | R138: 147 | S138: 189 | T138: 61 | U138: 121 | V138: 76 | W138: 85 | X138: 127 | Y138: 138 | Z138: 187 | AA138: 115 | AB138: 88 | AC138: 127 | AD138: 120 | AE138: 179 | AF138: 95 | AG138: 233 | AH138: 183 | AI138: 93 | AJ138: 178 | AK138: 100 | AL138: 5375 | AM138: 0.01501559261 | AN138: 1.306571664 | AO138: 137 | AP138: =(AL138/SUM(AL$2:AL$270)*1000000) -> 150.1559261 | AQ138: =LOG(AP138, 2) -> 7.230317604
A139: mir-769-5p | B139: 48 | C139: 137 | D139: 72 | E139: 178 | F139: 169 | G139: 217 | H139: 301 | I139: 167 | J139: 112 | K139: 120 | L139: 300 | M139: 242 | N139: 74 | O139: 129 | P139: 195 | Q139: 128 | R139: 177 | S139: 164 | T139: 67 | U139: 120 | V139: 58 | W139: 78 | X139: 126 | Y139: 145 | Z139: 218 | AA139: 150 | AB139: 70 | AC139: 146 | AD139: 94 | AE139: 199 | AF139: 104 | AG139: 171 | AH139: 273 | AI139: 102 | AJ139: 156 | AK139: 128 | AL139: 5335 | AM139: 0.01490384867 | AN139: 1.321475513 | AO139: 138 | AP139: =(AL139/SUM(AL$2:AL$270)*1000000) -> 149.0384867 | AQ139: =LOG(AP139, 2) -> 7.21954112
A140: mir-16 | B140: 65 | C140: 223 | D140: 189 | E140: 78 | F140: 245 | G140: 248 | H140: 140 | I140: 208 | J140: 113 | K140: 100 | L140: 224 | M140: 641 | N140: 38 | O140: 140 | P140: 140 | Q140: 98 | R140: 72 | S140: 162 | T140: 37 | U140: 218 | V140: 46 | W140: 179 | X140: 67 | Y140: 164 | Z140: 104 | AA140: 51 | AB140: 52 | AC140: 96 | AD140: 113 | AE140: 167 | AF140: 66 | AG140: 165 | AH140: 382 | AI140: 98 | AJ140: 81 | AK140: 90 | AL140: 5300 | AM140: 0.01480607271 | AN140: 1.336281586 | AO140: 139 | AP140: =(AL140/SUM(AL$2:AL$270)*1000000) -> 148.0607271 | AQ140: =LOG(AP140, 2) -> 7.210045209
A141: mir-19b | B141: 104 | C141: 245 | D141: 143 | E141: 50 | F141: 256 | G141: 287 | H141: 60 | I141: 184 | J141: 74 | K141: 56 | L141: 272 | M141: 752 | N141: 31 | O141: 107 | P141: 130 | Q141: 107 | R141: 41 | S141: 171 | T141: 32 | U141: 271 | V141: 32 | W141: 263 | X141: 81 | Y141: 175 | Z141: 98 | AA141: 56 | AB141: 57 | AC141: 70 | AD141: 95 | AE141: 115 | AF141: 55 | AG141: 201 | AH141: 325 | AI141: 91 | AJ141: 75 | AK141: 72 | AL141: 5234 | AM141: 0.0146216952 | AN141: 1.350903281 | AO141: 140 | AP141: =(AL141/SUM(AL$2:AL$270)*1000000) -> 146.216952 | AQ141: =LOG(AP141, 2) -> 7.191966773
A142: mir-361-5p | B142: 102 | C142: 468 | D142: 177 | E142: 100 | F142: 210 | G142: 286 | H142: 154 | I142: 248 | J142: 107 | K142: 80 | L142: 303 | M142: 440 | N142: 51 | O142: 148 | P142: 164 | Q142: 57 | R142: 62 | S142: 135 | T142: 25 | U142: 177 | V142: 36 | W142: 140 | X142: 49 | Y142: 140 | Z142: 115 | AA142: 50 | AB142: 42 | AC142: 53 | AD142: 81 | AE142: 108 | AF142: 91 | AG142: 99 | AH142: 473 | AI142: 87 | AJ142: 51 | AK142: 117 | AL142: 5226 | AM142: 0.01459934642 | AN142: 1.365502627 | AO142: 141 | AP142: =(AL142/SUM(AL$2:AL$270)*1000000) -> 145.9934642 | AQ142: =LOG(AP142, 2) -> 7.189759974
A143: mir-4505p | B143: 54 | C143: 121 | D143: 96 | E143: 104 | F143: 193 | G143: 179 | H143: 158 | I143: 150 | J143: 104 | K143: 176 | L143: 342 | M143: 477 | N143: 55 | O143: 119 | P143: 258 | Q143: 187 | R143: 126 | S143: 179 | T143: 38 | U143: 115 | V143: 40 | W143: 69 | X143: 84 | Y143: 97 | Z143: 136 | AA143: 98 | AB143: 73 | AC143: 96 | AD143: 117 | AE143: 216 | AF143: 69 | AG143: 181 | AH143: 173 | AI143: 70 | AJ143: 111 | AK143: 79 | AL143: 4940 | AM143: 0.01380037721 | AN143: 1.379303004 | AO143: 142 | AP143: =(AL143/SUM(AL$2:AL$270)*1000000) -> 138.0037721 | AQ143: =LOG(AP143, 2) -> 7.108563891
A144: mir-203a | B144: 36 | C144: 118 | D144: 77 | E144: 125 | F144: 168 | G144: 202 | H144: 227 | I144: 138 | J144: 92 | K144: 114 | L144: 237 | M144: 236 | N144: 92 | O144: 150 | P144: 210 | Q144: 140 | R144: 151 | S144: 156 | T144: 46 | U144: 116 | V144: 62 | W144: 98 | X144: 167 | Y144: 159 | Z144: 173 | AA144: 84 | AB144: 53 | AC144: 135 | AD144: 121 | AE144: 228 | AF144: 95 | AG144: 158 | AH144: 212 | AI144: 108 | AJ144: 141 | AK144: 104 | AL144: 4929 | AM144: 0.01376964762 | AN144: 1.393072652 | AO144: 143 | AP144: =(AL144/SUM(AL$2:AL$270)*1000000) -> 137.6964762 | AQ144: =LOG(AP144, 2) -> 7.10534783
A145: mir-378f | B145: 53 | C145: 184 | D145: 101 | E145: 133 | F145: 193 | G145: 145 | H145: 159 | I145: 143 | J145: 114 | K145: 134 | L145: 214 | M145: 316 | N145: 64 | O145: 135 | P145: 239 | Q145: 171 | R145: 103 | S145: 150 | T145: 70 | U145: 106 | V145: 79 | W145: 76 | X145: 125 | Y145: 125 | Z145: 144 | AA145: 118 | AB145: 56 | AC145: 147 | AD145: 90 | AE145: 154 | AF145: 65 | AG145: 208 | AH145: 170 | AI145: 73 | AJ145: 176 | AK145: 107 | AL145: 4840 | AM145: 0.01352101735 | AN145: 1.406593669 | AO145: 144 | AP145: =(AL145/SUM(AL$2:AL$270)*1000000) -> 135.2101735 | AQ145: =LOG(AP145, 2) -> 7.079059896
A146: mir-7142-3p | B146: 59 | C146: 140 | D146: 106 | E146: 129 | F146: 211 | G146: 134 | H146: 203 | I146: 116 | J146: 84 | K146: 127 | L146: 255 | M146: 317 | N146: 55 | O146: 118 | P146: 239 | Q146: 172 | R146: 117 | S146: 176 | T146: 62 | U146: 142 | V146: 55 | W146: 93 | X146: 81 | Y146: 103 | Z146: 189 | AA146: 123 | AB146: 68 | AC146: 112 | AD146: 106 | AE146: 121 | AF146: 61 | AG146: 189 | AH146: 202 | AI146: 64 | AJ146: 201 | AK146: 92 | AL146: 4822 | AM146: 0.01347073257 | AN146: 1.420064402 | AO146: 145 | AP146: =(AL146/SUM(AL$2:AL$270)*1000000) -> 134.7073257 | AQ146: =LOG(AP146, 2) -> 7.0736845
A147: mir-205 | B147: 36 | C147: 404 | D147: 96 | E147: 64 | F147: 91 | G147: 75 | H147: 182 | I147: 135 | J147: 64 | K147: 47 | L147: 292 | M147: 397 | N147: 122 | O147: 163 | P147: 59 | Q147: 16 | R147: 93 | S147: 102 | T147: 32 | U147: 175 | V147: 36 | W147: 68 | X147: 34 | Y147: 69 | Z147: 185 | AA147: 75 | AB147: 36 | AC147: 37 | AD147: 60 | AE147: 115 | AF147: 151 | AG147: 71 | AH147: 547 | AI147: 129 | AJ147: 65 | AK147: 270 | AL147: 4593 | AM147: 0.01283099849 | AN147: 1.4328954 | AO147: 146 | AP147: =(AL147/SUM(AL$2:AL$270)*1000000) -> 128.3099849 | AQ147: =LOG(AP147, 2) -> 7.003489633
A148: mir-196a | B148: 72 | C148: 143 | D148: 183 | E148: 113 | F148: 209 | G148: 182 | H148: 127 | I148: 228 | J148: 222 | K148: 94 | L148: 262 | M148: 265 | N148: 30 | O148: 138 | P148: 79 | Q148: 82 | R148: 52 | S148: 65 | T148: 68 | U148: 282 | V148: 107 | W148: 128 | X148: 57 | Y148: 127 | Z148: 167 | AA148: 80 | AB148: 131 | AC148: 164 | AD148: 70 | AE148: 164 | AF148: 58 | AG148: 102 | AH148: 102 | AI148: 68 | AJ148: 100 | AK148: 70 | AL148: 4591 | AM148: 0.01282541129 | AN148: 1.445720812 | AO148: 147 | AP148: =(AL148/SUM(AL$2:AL$270)*1000000) -> 128.2541129 | AQ148: =LOG(AP148, 2) -> 7.002861281
A149: mir-204 | B149: 11 | C149: 203 | D149: 45 | E149: 113 | F149: 31 | G149: 34 | H149: 657 | I149: 74 | J149: 82 | K149: 96 | L149: 227 | M149: 160 | N149: 103 | O149: 148 | P149: 66 | Q149: 36 | R149: 210 | S149: 50 | T149: 7 | U149: 136 | V149: 38 | W149: 12 | X149: 16 | Y149: 18 | Z149: 341 | AA149: 164 | AB149: 24 | AC149: 42 | AD149: 134 | AE149: 193 | AF149: 132 | AG149: 61 | AH149: 533 | AI149: 164 | AJ149: 66 | AK149: 122 | AL149: 4549 | AM149: 0.01270808015 | AN149: 1.458428892 | AO149: 148 | AP149: =(AL149/SUM(AL$2:AL$270)*1000000) -> 127.0808015 | AQ149: =LOG(AP149, 2) -> 6.989602284
A150: mir-1485p | B150: 43 | C150: 127 | D150: 41 | E150: 116 | F150: 189 | G150: 197 | H150: 193 | I150: 173 | J150: 113 | K150: 91 | L150: 234 | M150: 356 | N150: 84 | O150: 97 | P150: 141 | Q150: 95 | R150: 125 | S150: 87 | T150: 63 | U150: 75 | V150: 32 | W150: 68 | X150: 155 | Y150: 160 | Z150: 123 | AA150: 112 | AB150: 57 | AC150: 206 | AD150: 113 | AE150: 154 | AF150: 69 | AG150: 166 | AH150: 203 | AI150: 40 | AJ150: 117 | AK150: 85 | AL150: 4500 | AM150: 0.01257119381 | AN150: 1.471000086 | AO150: 149 | AP150: =(AL150/SUM(AL$2:AL$270)*1000000) -> 125.7119381 | AQ150: =LOG(AP150, 2) -> 6.97397785
A151: mir-34b | B151: 4 | C151: 88 | D151: 47 | E151: 126 | F151: 39 | G151: 32 | H151: 835 | I151: 99 | J151: 85 | K151: 97 | L151: 328 | M151: 367 | N151: 24 | O151: 22 | P151: 61 | Q151: 45 | R151: 169 | S151: 15 | T151: 5 | U151: 225 | V151: 21 | W151: 9 | X151: 28 | Y151: 22 | Z151: 474 | AA151: 156 | AB151: 12 | AC151: 42 | AD151: 110 | AE151: 189 | AF151: 38 | AG151: 75 | AH151: 323 | AI151: 78 | AJ151: 19 | AK151: 19 | AL151: 4328 | AM151: 0.01209069485 | AN151: 1.483090781 | AO151: 150 | AP151: =(AL151/SUM(AL$2:AL$270)*1000000) -> 120.9069485 | AQ151: =LOG(AP151, 2) -> 6.917753348
A152: mir-424-5p | B152: 45 | C152: 123 | D152: 117 | E152: 39 | F152: 246 | G152: 246 | H152: 51 | I152: 136 | J152: 63 | K152: 75 | L152: 199 | M152: 557 | N152: 28 | O152: 47 | P152: 113 | Q152: 93 | R152: 35 | S152: 108 | T152: 18 | U152: 272 | V152: 25 | W152: 173 | X152: 77 | Y152: 190 | Z152: 141 | AA152: 64 | AB152: 49 | AC152: 55 | AD152: 78 | AE152: 126 | AF152: 41 | AG152: 153 | AH152: 222 | AI152: 67 | AJ152: 65 | AK152: 52 | AL152: 4189 | AM152: 0.01170238464 | AN152: 1.494793165 | AO152: 151 | AP152: =(AL152/SUM(AL$2:AL$270)*1000000) -> 117.0238464 | AQ152: =LOG(AP152, 2) -> 6.870658733
A153: ENSSSCG00000018952 | B153: 71 | C153: 128 | D153: 90 | E153: 78 | F153: 147 | G153: 139 | H153: 151 | I153: 160 | J153: 81 | K153: 119 | L153: 187 | M153: 251 | N153: 61 | O153: 101 | P153: 213 | Q153: 114 | R153: 50 | S153: 132 | T153: 67 | U153: 135 | V153: 35 | W153: 89 | X153: 46 | Y153: 93 | Z153: 150 | AA153: 139 | AB153: 79 | AC153: 113 | AD153: 94 | AE153: 137 | AF153: 63 | AG153: 191 | AH153: 152 | AI153: 38 | AJ153: 203 | AK153: 79 | AL153: 4176 | AM153: 0.01166606786 | AN153: 1.506459233 | AO153: 152 | AP153: =(AL153/SUM(AL$2:AL$270)*1000000) -> 116.6606786 | AQ153: =LOG(AP153, 2) -> 6.866174561
A154: mir-98 | B154: 54 | C154: 299 | D154: 115 | E154: 98 | F154: 80 | G154: 110 | H154: 282 | I154: 170 | J154: 107 | K154: 49 | L154: 262 | M154: 254 | N154: 64 | O154: 129 | P154: 73 | Q154: 29 | R154: 100 | S154: 74 | T154: 14 | U154: 138 | V154: 47 | W154: 56 | X154: 40 | Y154: 72 | Z154: 144 | AA154: 45 | AB154: 20 | AC154: 47 | AD154: 75 | AE154: 148 | AF154: 100 | AG154: 61 | AH154: 475 | AI154: 124 | AJ154: 51 | AK154: 144 | AL154: 4150 | AM154: 0.01159343429 | AN154: 1.518052667 | AO154: 153 | AP154: =(AL154/SUM(AL$2:AL$270)*1000000) -> 115.9343429 | AQ154: =LOG(AP154, 2) -> 6.857164185
A155: mir-7-5p | B155: 25 | C155: 66 | D155: 51 | E155: 170 | F155: 92 | G155: 213 | H155: 247 | I155: 229 | J155: 140 | K155: 52 | L155: 149 | M155: 131 | N155: 67 | O155: 134 | P155: 68 | Q155: 69 | R155: 129 | S155: 64 | T155: 37 | U155: 75 | V155: 73 | W155: 33 | X155: 187 | Y155: 87 | Z155: 111 | AA155: 54 | AB155: 45 | AC155: 141 | AD155: 118 | AE155: 209 | AF155: 119 | AG155: 104 | AH155: 214 | AI155: 149 | AJ155: 86 | AK155: 106 | AL155: 4044 | AM155: 0.01129731284 | AN155: 1.52934998 | AO155: 154 | AP155: =(AL155/SUM(AL$2:AL$270)*1000000) -> 112.9731284 | AQ155: =LOG(AP155, 2) -> 6.819835846
A156: ENSSSCG00000020115 | B156: 100 | C156: 196 | D156: 187 | E156: 117 | F156: 170 | G156: 168 | H156: 128 | I156: 179 | J156: 100 | K156: 107 | L156: 295 | M156: 301 | N156: 48 | O156: 116 | P156: 77 | Q156: 95 | R156: 89 | S156: 70 | T156: 29 | U156: 163 | V156: 20 | W156: 95 | X156: 89 | Y156: 95 | Z156: 120 | AA156: 44 | AB156: 40 | AC156: 52 | AD156: 61 | AE156: 104 | AF156: 38 | AG156: 78 | AH156: 107 | AI156: 36 | AJ156: 103 | AK156: 47 | AL156: 3864 | AM156: 0.01079446509 | AN156: 1.540144445 | AO156: 155 | AP156: =(AL156/SUM(AL$2:AL$270)*1000000) -> 107.9446509 | AQ156: =LOG(AP156, 2) -> 6.754147943
A157: mir-1306-3p | B157: 61 | C157: 204 | D157: 76 | E157: 121 | F157: 116 | G157: 63 | H157: 169 | I157: 138 | J157: 86 | K157: 104 | L157: 228 | M157: 219 | N157: 32 | O157: 103 | P157: 159 | Q157: 90 | R157: 80 | S157: 88 | T157: 162 | U157: 89 | V157: 65 | W157: 44 | X157: 73 | Y157: 83 | Z157: 153 | AA157: 153 | AB157: 55 | AC157: 96 | AD157: 69 | AE157: 90 | AF157: 54 | AG157: 118 | AH157: 138 | AI157: 47 | AJ157: 143 | AK157: 46 | AL157: 3815 | AM157: 0.01065757876 | AN157: 1.550802024 | AO157: 156 | AP157: =(AL157/SUM(AL$2:AL$270)*1000000) -> 106.5757876 | AQ157: =LOG(AP157, 2) -> 6.735735906
A158: mir-221-3p | B158: 23 | C158: 285 | D158: 81 | E158: 34 | F158: 160 | G158: 204 | H158: 93 | I158: 155 | J158: 46 | K158: 37 | L158: 127 | M158: 256 | N158: 30 | O158: 75 | P158: 81 | Q158: 34 | R158: 41 | S158: 56 | T158: 17 | U158: 152 | V158: 18 | W158: 140 | X158: 99 | Y158: 178 | Z158: 63 | AA158: 25 | AB158: 38 | AC158: 45 | AD158: 83 | AE158: 144 | AF158: 60 | AG158: 128 | AH158: 469 | AI158: 102 | AJ158: 38 | AK158: 86 | AL158: 3703 | AM158: 0.01034469571 | AN158: 1.56114672 | AO158: 157 | AP158: =(AL158/SUM(AL$2:AL$270)*1000000) -> 103.4469571 | AQ158: =LOG(AP158, 2) -> 6.692747398
A159: mir-25-5p | B159: 143 | C159: 114 | D159: 117 | E159: 120 | F159: 97 | G159: 158 | H159: 134 | I159: 208 | J159: 130 | K159: 63 | L159: 165 | M159: 195 | N159: 45 | O159: 101 | P159: 109 | Q159: 49 | R159: 66 | S159: 68 | T159: 82 | U159: 110 | V159: 78 | W159: 61 | X159: 61 | Y159: 93 | Z159: 90 | AA159: 41 | AB159: 60 | AC159: 94 | AD159: 109 | AE159: 92 | AF159: 76 | AG159: 124 | AH159: 213 | AI159: 77 | AJ159: 58 | AK159: 42 | AL159: 3643 | AM159: 0.01017707979 | AN159: 1.5713238 | AO159: 158 | AP159: =(AL159/SUM(AL$2:AL$270)*1000000) -> 101.7707979 | AQ159: =LOG(AP159, 2) -> 6.669179844
A160: mir-106b | B160: 63 | C160: 125 | D160: 101 | E160: 51 | F160: 147 | G160: 205 | H160: 69 | I160: 129 | J160: 81 | K160: 47 | L160: 158 | M160: 538 | N160: 32 | O160: 56 | P160: 85 | Q160: 67 | R160: 43 | S160: 104 | T160: 23 | U160: 189 | V160: 24 | W160: 116 | X160: 73 | Y160: 137 | Z160: 69 | AA160: 45 | AB160: 45 | AC160: 53 | AD160: 94 | AE160: 115 | AF160: 51 | AG160: 103 | AH160: 228 | AI160: 56 | AJ160: 47 | AK160: 58 | AL160: 3627 | AM160: 0.01013238221 | AN160: 1.581456182 | AO160: 159 | AP160: =(AL160/SUM(AL$2:AL$270)*1000000) -> 101.3238221 | AQ160: =LOG(AP160, 2) -> 6.662829594
A161: mir-9-1 | B161: 9 | C161: 162 | D161: 67 | E161: 55 | F161: 46 | G161: 33 | H161: 254 | I161: 53 | J161: 43 | K161: 106 | L161: 384 | M161: 422 | N161: 18 | O161: 19 | P161: 54 | Q161: 39 | R161: 117 | S161: 9 | T161: 9 | U161: 171 | V161: 14 | W161: 33 | X161: 9 | Y161: 21 | Z161: 186 | AA161: 80 | AB161: 11 | AC161: 28 | AD161: 123 | AE161: 153 | AF161: 13 | AG161: 44 | AH161: 605 | AI161: 127 | AJ161: 18 | AK161: 25 | AL161: 3560 | AM161: 0.009945211106 | AN161: 1.591401393 | AO161: 160 | AP161: =(AL161/SUM(AL$2:AL$270)*1000000) -> 99.45211106 | AQ161: =LOG(AP161, 2) -> 6.63593009
A162: mir-2320-3p | B162: 87 | C162: 115 | D162: 53 | E162: 137 | F162: 56 | G162: 41 | H162: 204 | I162: 110 | J162: 115 | K162: 118 | L162: 152 | M162: 127 | N162: 39 | O162: 64 | P162: 167 | Q162: 72 | R162: 122 | S162: 78 | T162: 187 | U162: 72 | V162: 81 | W162: 33 | X162: 35 | Y162: 42 | Z162: 158 | AA162: 143 | AB162: 60 | AC162: 150 | AD162: 70 | AE162: 100 | AF162: 41 | AG162: 92 | AH162: 107 | AI162: 48 | AJ162: 170 | AK162: 38 | AL162: 3484 | AM162: 0.00973289761 | AN162: 1.60113429 | AO162: 161 | AP162: =(AL162/SUM(AL$2:AL$270)*1000000) -> 97.3289761 | AQ162: =LOG(AP162, 2) -> 6.604797473
A163: mir-184 | B163: 10 | C163: 132 | D163: 40 | E163: 108 | F163: 51 | G163: 31 | H163: 178 | I163: 58 | J163: 74 | K163: 105 | L163: 266 | M163: 75 | N163: 13 | O163: 193 | P163: 108 | Q163: 211 | R163: 91 | S163: 26 | T163: 10 | U163: 90 | V163: 79 | W163: 11 | X163: 32 | Y163: 9 | Z163: 210 | AA163: 32 | AB163: 58 | AC163: 50 | AD163: 82 | AE163: 228 | AF163: 13 | AG163: 346 | AH163: 76 | AI163: 47 | AJ163: 262 | AK163: 25 | AL163: 3430 | AM163: 0.009582043284 | AN163: 1.610716334 | AO163: 162 | AP163: =(AL163/SUM(AL$2:AL$270)*1000000) -> 95.82043284 | AQ163: =LOG(AP163, 2) -> 6.582261425
A164: mir-1307-5p | B164: 30 | C164: 43 | D164: 36 | E164: 75 | F164: 84 | G164: 111 | H164: 130 | I164: 67 | J164: 50 | K164: 107 | L164: 146 | M164: 172 | N164: 73 | O164: 70 | P164: 108 | Q164: 100 | R164: 86 | S164: 182 | T164: 25 | U164: 98 | V164: 18 | W164: 44 | X164: 102 | Y164: 138 | Z164: 148 | AA164: 135 | AB164: 33 | AC164: 83 | AD164: 87 | AE164: 157 | AF164: 78 | AG164: 133 | AH164: 142 | AI164: 53 | AJ164: 127 | AK164: 95 | AL164: 3366 | AM164: 0.009403252972 | AN164: 1.620119587 | AO164: 163 | AP164: =(AL164/SUM(AL$2:AL$270)*1000000) -> 94.03252972 | AQ164: =LOG(AP164, 2) -> 6.555088026
A165: mir-3653-3p | B165: 44 | C165: 45 | D165: 31 | E165: 100 | F165: 91 | G165: 35 | H165: 138 | I165: 41 | J165: 56 | K165: 139 | L165: 146 | M165: 15 | N165: 74 | O165: 125 | P165: 199 | Q165: 129 | R165: 98 | S165: 137 | T165: 163 | U165: 46 | V165: 101 | W165: 22 | X165: 73 | Y165: 33 | Z165: 199 | AA165: 205 | AB165: 66 | AC165: 113 | AD165: 57 | AE165: 65 | AF165: 50 | AG165: 132 | AH165: 29 | AI165: 31 | AJ165: 231 | AK165: 57 | AL165: 3316 | AM165: 0.009263573041 | AN165: 1.62938316 | AO165: 164 | AP165: =(AL165/SUM(AL$2:AL$270)*1000000) -> 92.63573041 | AQ165: =LOG(AP165, 2) -> 6.533496856
A166: mir-100 | B166: 9 | C166: 101 | D166: 34 | E166: 58 | F166: 76 | G166: 64 | H166: 464 | I166: 50 | J166: 49 | K166: 88 | L166: 115 | M166: 93 | N166: 79 | O166: 98 | P166: 42 | Q166: 45 | R166: 121 | S166: 92 | T166: 13 | U166: 72 | V166: 18 | W166: 43 | X166: 50 | Y166: 54 | Z166: 324 | AA166: 210 | AB166: 18 | AC166: 24 | AD166: 43 | AE166: 95 | AF166: 114 | AG166: 46 | AH166: 153 | AI166: 30 | AJ166: 80 | AK166: 102 | AL166: 3167 | AM166: 0.008847326846 | AN166: 1.638230487 | AO166: 165 | AP166: =(AL166/SUM(AL$2:AL$270)*1000000) -> 88.47326846 | AQ166: =LOG(AP166, 2) -> 6.467169716
A167: mir-4335 | B167: 105 | C167: 601 | D167: 65 | E167: 158 | F167: 88 | G167: 90 | H167: 88 | I167: 53 | J167: 31 | K167: 31 | L167: 158 | M167: 245 | N167: 48 | O167: 61 | P167: 49 | Q167: 21 | R167: 9 | S167: 53 | T167: 224 | U167: 99 | V167: 104 | W167: 90 | X167: 65 | Y167: 72 | Z167: 81 | AA167: 26 | AB167: 18 | AC167: 32 | AD167: 41 | AE167: 72 | AF167: 43 | AG167: 41 | AH167: 59 | AI167: 14 | AJ167: 89 | AK167: 39 | AL167: 3163 | AM167: 0.008836152451 | AN167: 1.647066639 | AO167: 166 | AP167: =(AL167/SUM(AL$2:AL$270)*1000000) -> 88.36152451 | AQ167: =LOG(AP167, 2) -> 6.465346405
A168: mir-5100 | B168: 56 | C168: 310 | D168: 80 | E168: 62 | F168: 91 | G168: 79 | H168: 228 | I168: 38 | J168: 40 | K168: 49 | L168: 207 | M168: 181 | N168: 40 | O168: 43 | P168: 52 | Q168: 30 | R168: 19 | S168: 42 | T168: 206 | U168: 191 | V168: 96 | W168: 97 | X168: 72 | Y168: 50 | Z168: 162 | AA168: 69 | AB168: 20 | AC168: 38 | AD168: 62 | AE168: 104 | AF168: 38 | AG168: 61 | AH168: 62 | AI168: 10 | AJ168: 43 | AK168: 18 | AL168: 3046 | AM168: 0.008509301412 | AN168: 1.65557594 | AO168: 167 | AP168: =(AL168/SUM(AL$2:AL$270)*1000000) -> 85.09301412 | AQ168: =LOG(AP168, 2) -> 6.410968791
A169: mir-1306-5p | B169: 99 | C169: 217 | D169: 93 | E169: 43 | F169: 107 | G169: 101 | H169: 57 | I169: 117 | J169: 79 | K169: 57 | L169: 135 | M169: 270 | N169: 31 | O169: 58 | P169: 100 | Q169: 60 | R169: 27 | S169: 80 | T169: 51 | U169: 144 | V169: 57 | W169: 85 | X169: 50 | Y169: 65 | Z169: 73 | AA169: 36 | AB169: 58 | AC169: 48 | AD169: 64 | AE169: 61 | AF169: 38 | AG169: 92 | AH169: 173 | AI169: 24 | AJ169: 53 | AK169: 35 | AL169: 2938 | AM169: 0.008207592761 | AN169: 1.663783533 | AO169: 168 | AP169: =(AL169/SUM(AL$2:AL$270)*1000000) -> 82.07592761 | AQ169: =LOG(AP169, 2) -> 6.358887245
A170: mir-146b | B170: 12 | C170: 76 | D170: 13 | E170: 50 | F170: 47 | G170: 37 | H170: 601 | I170: 96 | J170: 66 | K170: 114 | L170: 96 | M170: 75 | N170: 19 | O170: 36 | P170: 72 | Q170: 44 | R170: 94 | S170: 21 | T170: 10 | U170: 60 | V170: 26 | W170: 10 | X170: 20 | Y170: 15 | Z170: 344 | AA170: 161 | AB170: 28 | AC170: 54 | AD170: 111 | AE170: 130 | AF170: 29 | AG170: 51 | AH170: 168 | AI170: 66 | AJ170: 25 | AK170: 15 | AL170: 2892 | AM170: 0.008079087224 | AN170: 1.67186262 | AO170: 169 | AP170: =(AL170/SUM(AL$2:AL$270)*1000000) -> 80.79087224 | AQ170: =LOG(AP170, 2) -> 6.336120401
A171: ENSSSCG00000026244 | B171: 133 | C171: 169 | D171: 123 | E171: 80 | F171: 97 | G171: 136 | H171: 126 | I171: 189 | J171: 104 | K171: 49 | L171: 200 | M171: 154 | N171: 35 | O171: 73 | P171: 67 | Q171: 52 | R171: 51 | S171: 61 | T171: 50 | U171: 131 | V171: 23 | W171: 97 | X171: 29 | Y171: 63 | Z171: 65 | AA171: 27 | AB171: 25 | AC171: 36 | AD171: 36 | AE171: 56 | AF171: 22 | AG171: 54 | AH171: 78 | AI171: 29 | AJ171: 65 | AK171: 34 | AL171: 2819 | AM171: 0.007875154524 | AN171: 1.679737775 | AO171: 170 | AP171: =(AL171/SUM(AL$2:AL$270)*1000000) -> 78.75154524 | AQ171: =LOG(AP171, 2) -> 6.299236327
A172: ENSSSCG00000018677 | B172: 46 | C172: 88 | D172: 84 | E172: 40 | F172: 85 | G172: 159 | H172: 82 | I172: 112 | J172: 54 | K172: 41 | L172: 177 | M172: 387 | N172: 19 | O172: 54 | P172: 91 | Q172: 55 | R172: 41 | S172: 46 | T172: 26 | U172: 99 | V172: 26 | W172: 41 | X172: 40 | Y172: 86 | Z172: 70 | AA172: 21 | AB172: 47 | AC172: 65 | AD172: 57 | AE172: 109 | AF172: 47 | AG172: 78 | AH172: 214 | AI172: 40 | AJ172: 27 | AK172: 41 | AL172: 2795 | AM172: 0.007808108157 | AN172: 1.687545883 | AO172: 171 | AP172: =(AL172/SUM(AL$2:AL$270)*1000000) -> 78.08108157 | AQ172: =LOG(AP172, 2) -> 6.286901132
A173: mir-362 | B173: 40 | C173: 99 | D173: 90 | E173: 60 | F173: 106 | G173: 107 | H173: 67 | I173: 105 | J173: 43 | K173: 44 | L173: 165 | M173: 279 | N173: 15 | O173: 57 | P173: 64 | Q173: 55 | R173: 38 | S173: 57 | T173: 20 | U173: 153 | V173: 37 | W173: 79 | X173: 55 | Y173: 96 | Z173: 84 | AA173: 49 | AB173: 31 | AC173: 59 | AD173: 72 | AE173: 103 | AF173: 45 | AG173: 94 | AH173: 169 | AI173: 47 | AJ173: 58 | AK173: 49 | AL173: 2791 | AM173: 0.007796933763 | AN173: 1.695342817 | AO173: 172 | AP173: =(AL173/SUM(AL$2:AL$270)*1000000) -> 77.96933763 | AQ173: =LOG(AP173, 2) -> 6.284834973
A174: mir-23a | B174: 2 | C174: 151 | D174: 41 | E174: 14 | F174: 55 | G174: 90 | H174: 132 | I174: 91 | J174: 30 | K174: 29 | L174: 252 | M174: 459 | N174: 27 | O174: 49 | P174: 30 | Q174: 13 | R174: 44 | S174: 26 | T174: 3 | U174: 134 | V174: 11 | W174: 79 | X174: 22 | Y174: 30 | Z174: 109 | AA174: 20 | AB174: 13 | AC174: 9 | AD174: 42 | AE174: 121 | AF174: 60 | AG174: 29 | AH174: 280 | AI174: 84 | AJ174: 23 | AK174: 89 | AL174: 2693 | AM174: 0.007523161098 | AN174: 1.702865978 | AO174: 173 | AP174: =(AL174/SUM(AL$2:AL$270)*1000000) -> 75.23161098 | AQ174: =LOG(AP174, 2) -> 6.233267079
A175: mir-151-5p | B175: 45 | C175: 158 | D175: 56 | E175: 39 | F175: 132 | G175: 125 | H175: 120 | I175: 76 | J175: 43 | K175: 56 | L175: 99 | M175: 205 | N175: 30 | O175: 67 | P175: 87 | Q175: 81 | R175: 32 | S175: 93 | T175: 32 | U175: 113 | V175: 29 | W175: 71 | X175: 53 | Y175: 58 | Z175: 101 | AA175: 69 | AB175: 38 | AC175: 40 | AD175: 49 | AE175: 92 | AF175: 41 | AG175: 93 | AH175: 124 | AI175: 32 | AJ175: 76 | AK175: 37 | AL175: 2692 | AM175: 0.007520367499 | AN175: 1.710386345 | AO175: 174 | AP175: =(AL175/SUM(AL$2:AL$270)*1000000) -> 75.20367499 | AQ175: =LOG(AP175, 2) -> 6.232731259
A176: mir-192 | B176: 21 | C176: 47 | D176: 37 | E176: 67 | F176: 83 | G176: 64 | H176: 485 | I176: 50 | J176: 40 | K176: 51 | L176: 150 | M176: 82 | N176: 23 | O176: 48 | P176: 89 | Q176: 64 | R176: 113 | S176: 36 | T176: 25 | U176: 44 | V176: 16 | W176: 36 | X176: 42 | Y176: 37 | Z176: 271 | AA176: 85 | AB176: 36 | AC176: 53 | AD176: 58 | AE176: 97 | AF176: 11 | AG176: 76 | AH176: 105 | AI176: 54 | AJ176: 59 | AK176: 14 | AL176: 2669 | AM176: 0.007456114731 | AN176: 1.71784246 | AO176: 175 | AP176: =(AL176/SUM(AL$2:AL$270)*1000000) -> 74.56114731 | AQ176: =LOG(AP176, 2) -> 6.220352154
A177: mir-505 | B177: 42 | C177: 92 | D177: 85 | E177: 48 | F177: 95 | G177: 164 | H177: 88 | I177: 128 | J177: 67 | K177: 32 | L177: 133 | M177: 181 | N177: 33 | O177: 50 | P177: 72 | Q177: 54 | R177: 39 | S177: 65 | T177: 19 | U177: 76 | V177: 30 | W177: 83 | X177: 58 | Y177: 88 | Z177: 57 | AA177: 25 | AB177: 28 | AC177: 56 | AD177: 51 | AE177: 87 | AF177: 43 | AG177: 81 | AH177: 204 | AI177: 49 | AJ177: 55 | AK177: 55 | AL177: 2613 | AM177: 0.007299673208 | AN177: 1.725142133 | AO177: 176 | AP177: =(AL177/SUM(AL$2:AL$270)*1000000) -> 72.99673208 | AQ177: =LOG(AP177, 2) -> 6.189759974
A178: mir-103p | B178: 10 | C178: 181 | D178: 38 | E178: 54 | F178: 55 | G178: 73 | H178: 193 | I178: 46 | J178: 53 | K178: 50 | L178: 155 | M178: 144 | N178: 43 | O178: 68 | P178: 63 | Q178: 31 | R178: 70 | S178: 50 | T178: 14 | U178: 79 | V178: 25 | W178: 46 | X178: 34 | Y178: 57 | Z178: 101 | AA178: 50 | AB178: 14 | AC178: 27 | AD178: 47 | AE178: 98 | AF178: 65 | AG178: 66 | AH178: 224 | AI178: 72 | AJ178: 46 | AK178: 76 | AL178: 2518 | AM178: 0.007034281338 | AN178: 1.732176415 | AO178: 177 | AP178: =(AL178/SUM(AL$2:AL$270)*1000000) -> 70.34281338 | AQ178: =LOG(AP178, 2) -> 6.136331132
A179: mir-22-5p | B179: 29 | C179: 106 | D179: 61 | E179: 39 | F179: 94 | G179: 140 | H179: 72 | I179: 82 | J179: 39 | K179: 31 | L179: 97 | M179: 254 | N179: 29 | O179: 56 | P179: 42 | Q179: 27 | R179: 48 | S179: 63 | T179: 14 | U179: 91 | V179: 20 | W179: 75 | X179: 62 | Y179: 77 | Z179: 55 | AA179: 35 | AB179: 24 | AC179: 46 | AD179: 56 | AE179: 85 | AF179: 45 | AG179: 80 | AH179: 180 | AI179: 41 | AJ179: 38 | AK179: 54 | AL179: 2387 | AM179: 0.006668319918 | AN179: 1.738844735 | AO179: 178 | AP179: =(AL179/SUM(AL$2:AL$270)*1000000) -> 66.68319918 | AQ179: =LOG(AP179, 2) -> 6.059251415
A180: ENSSSCG00000020534 | B180: 89 | C180: 87 | D180: 120 | E180: 58 | F180: 118 | G180: 128 | H180: 66 | I180: 116 | J180: 47 | K180: 51 | L180: 202 | M180: 154 | N180: 14 | O180: 62 | P180: 46 | Q180: 37 | R180: 27 | S180: 50 | T180: 34 | U180: 114 | V180: 14 | W180: 87 | X180: 46 | Y180: 81 | Z180: 70 | AA180: 32 | AB180: 20 | AC180: 36 | AD180: 37 | AE180: 59 | AF180: 14 | AG180: 58 | AH180: 73 | AI180: 34 | AJ180: 53 | AK180: 32 | AL180: 2366 | AM180: 0.006609654347 | AN180: 1.745454389 | AO180: 179 | AP180: =(AL180/SUM(AL$2:AL$270)*1000000) -> 66.09654347 | AQ180: =LOG(AP180, 2) -> 6.046502923
A181: mir-367 | B181: 44 | C181: 87 | D181: 75 | E181: 33 | F181: 85 | G181: 94 | H181: 26 | I181: 63 | J181: 33 | K181: 24 | L181: 70 | M181: 274 | N181: 22 | O181: 38 | P181: 92 | Q181: 61 | R181: 19 | S181: 139 | T181: 19 | U181: 178 | V181: 15 | W181: 70 | X181: 27 | Y181: 115 | Z181: 63 | AA181: 43 | AB181: 29 | AC181: 35 | AD181: 56 | AE181: 84 | AF181: 19 | AG181: 73 | AH181: 115 | AI181: 33 | AJ181: 65 | AK181: 23 | AL181: 2341 | AM181: 0.006539814382 | AN181: 1.751994203 | AO181: 180 | AP181: =(AL181/SUM(AL$2:AL$270)*1000000) -> 65.39814382 | AQ181: =LOG(AP181, 2) -> 6.031177783
A182: mir-500 | B182: 23 | C182: 85 | D182: 62 | E182: 38 | F182: 108 | G182: 98 | H182: 53 | I182: 77 | J182: 58 | K182: 38 | L182: 90 | M182: 212 | N182: 26 | O182: 29 | P182: 54 | Q182: 58 | R182: 51 | S182: 46 | T182: 10 | U182: 98 | V182: 23 | W182: 65 | X182: 62 | Y182: 75 | Z182: 56 | AA182: 39 | AB182: 38 | AC182: 49 | AD182: 41 | AE182: 84 | AF182: 27 | AG182: 52 | AH182: 142 | AI182: 42 | AJ182: 62 | AK182: 50 | AL182: 2221 | AM182: 0.006204582547 | AN182: 1.758198786 | AO182: 181 | AP182: =(AL182/SUM(AL$2:AL$270)*1000000) -> 62.04582547 | AQ182: =LOG(AP182, 2) -> 5.955262242
A183: mir-1249 | B183: 63 | C183: 190 | D183: 34 | E183: 24 | F183: 65 | G183: 62 | H183: 79 | I183: 69 | J183: 36 | K183: 37 | L183: 115 | M183: 171 | N183: 15 | O183: 63 | P183: 85 | Q183: 67 | R183: 29 | S183: 30 | T183: 30 | U183: 70 | V183: 35 | W183: 47 | X183: 43 | Y183: 39 | Z183: 63 | AA183: 38 | AB183: 34 | AC183: 31 | AD183: 102 | AE183: 66 | AF183: 47 | AG183: 106 | AH183: 128 | AI183: 27 | AJ183: 30 | AK183: 19 | AL183: 2189 | AM183: 0.006115187391 | AN183: 1.764313973 | AO183: 182 | AP183: =(AL183/SUM(AL$2:AL$270)*1000000) -> 61.15187391 | AQ183: =LOG(AP183, 2) -> 5.934324803
A184: mir-660-5p | B184: 34 | C184: 49 | D184: 56 | E184: 41 | F184: 97 | G184: 105 | H184: 43 | I184: 66 | J184: 32 | K184: 37 | L184: 132 | M184: 235 | N184: 21 | O184: 28 | P184: 53 | Q184: 50 | R184: 44 | S184: 50 | T184: 4 | U184: 144 | V184: 14 | W184: 46 | X184: 51 | Y184: 96 | Z184: 62 | AA184: 45 | AB184: 18 | AC184: 37 | AD184: 44 | AE184: 76 | AF184: 24 | AG184: 83 | AH184: 152 | AI184: 37 | AJ184: 36 | AK184: 42 | AL184: 2184 | AM184: 0.006101219397 | AN184: 1.770415193 | AO184: 183 | AP184: =(AL184/SUM(AL$2:AL$270)*1000000) -> 61.01219397 | AQ184: =LOG(AP184, 2) -> 5.931025705
A185: mir-1248 | B185: 44 | C185: 44 | D185: 57 | E185: 54 | F185: 75 | G185: 67 | H185: 57 | I185: 102 | J185: 54 | K185: 62 | L185: 88 | M185: 29 | N185: 36 | O185: 80 | P185: 53 | Q185: 38 | R185: 40 | S185: 36 | T185: 51 | U185: 64 | V185: 71 | W185: 32 | X185: 53 | Y185: 87 | Z185: 86 | AA185: 60 | AB185: 29 | AC185: 77 | AD185: 68 | AE185: 82 | AF185: 50 | AG185: 75 | AH185: 80 | AI185: 37 | AJ185: 50 | AK185: 58 | AL185: 2126 | AM185: 0.005939190677 | AN185: 1.776354383 | AO185: 184 | AP185: =(AL185/SUM(AL$2:AL$270)*1000000) -> 59.39190677 | AQ185: =LOG(AP185, 2) -> 5.892194446
A186: mir-6782 | B186: 29 | C186: 120 | D186: 111 | E186: 95 | F186: 25 | G186: 31 | H186: 140 | I186: 53 | J186: 42 | K186: 67 | L186: 59 | M186: 96 | N186: 13 | O186: 41 | P186: 43 | Q186: 21 | R186: 74 | S186: 51 | T186: 32 | U186: 109 | V186: 63 | W186: 11 | X186: 23 | Y186: 25 | Z186: 120 | AA186: 129 | AB186: 26 | AC186: 44 | AD186: 75 | AE186: 50 | AF186: 20 | AG186: 35 | AH186: 87 | AI186: 40 | AJ186: 48 | AK186: 26 | AL186: 2074 | AM186: 0.005793923549 | AN186: 1.782148307 | AO186: 185 | AP186: =(AL186/SUM(AL$2:AL$270)*1000000) -> 57.93923549 | AQ186: =LOG(AP186, 2) -> 5.856468743
A187: mir-150 | B187: 10 | C187: 79 | D187: 21 | E187: 18 | F187: 30 | G187: 14 | H187: 434 | I187: 61 | J187: 64 | K187: 51 | L187: 70 | M187: 84 | N187: 10 | O187: 29 | P187: 74 | Q187: 36 | R187: 42 | S187: 14 | T187: 7 | U187: 78 | V187: 14 | W187: 15 | X187: 13 | Y187: 11 | Z187: 303 | AA187: 74 | AB187: 15 | AC187: 17 | AD187: 65 | AE187: 81 | AF187: 24 | AG187: 35 | AH187: 128 | AI187: 26 | AJ187: 7 | AK187: 17 | AL187: 2071 | AM187: 0.005785542753 | AN187: 1.78793385 | AO187: 186 | AP187: =(AL187/SUM(AL$2:AL$270)*1000000) -> 57.85542753 | AQ187: =LOG(AP187, 2) -> 5.854380403
A188: mir-365-3p | B188: 18 | C188: 81 | D188: 60 | E188: 11 | F188: 74 | G188: 149 | H188: 43 | I188: 104 | J188: 48 | K188: 30 | L188: 88 | M188: 198 | N188: 7 | O188: 62 | P188: 36 | Q188: 21 | R188: 21 | S188: 17 | T188: 9 | U188: 112 | V188: 21 | W188: 75 | X188: 28 | Y188: 60 | Z188: 25 | AA188: 9 | AB188: 26 | AC188: 27 | AD188: 84 | AE188: 98 | AF188: 41 | AG188: 34 | AH188: 214 | AI188: 64 | AJ188: 26 | AK188: 25 | AL188: 2046 | AM188: 0.005715702787 | AN188: 1.793649552 | AO188: 187 | AP188: =(AL188/SUM(AL$2:AL$270)*1000000) -> 57.15702787 | AQ188: =LOG(AP188, 2) -> 5.836858994
A189: mir-126-3p | B189: 22 | C189: 190 | D189: 38 | E189: 33 | F189: 95 | G189: 63 | H189: 79 | I189: 51 | J189: 29 | K189: 25 | L189: 71 | M189: 147 | N189: 34 | O189: 59 | P189: 31 | Q189: 43 | R189: 34 | S189: 81 | T189: 17 | U189: 71 | V189: 12 | W189: 57 | X189: 29 | Y189: 66 | Z189: 70 | AA189: 58 | AB189: 30 | AC189: 19 | AD189: 40 | AE189: 60 | AF189: 33 | AG189: 52 | AH189: 111 | AI189: 37 | AJ189: 75 | AK189: 67 | AL189: 2029 | AM189: 0.005668211611 | AN189: 1.799317764 | AO189: 188 | AP189: =(AL189/SUM(AL$2:AL$270)*1000000) -> 56.68211611 | AQ189: =LOG(AP189, 2) -> 5.824821714
A190: mir-590-3p | B190: 24 | C190: 36 | D190: 44 | E190: 30 | F190: 79 | G190: 134 | H190: 59 | I190: 57 | J190: 28 | K190: 18 | L190: 101 | M190: 203 | N190: 21 | O190: 45 | P190: 41 | Q190: 18 | R190: 28 | S190: 61 | T190: 11 | U190: 94 | V190: 14 | W190: 49 | X190: 40 | Y190: 134 | Z190: 47 | AA190: 40 | AB190: 18 | AC190: 40 | AD190: 57 | AE190: 78 | AF190: 25 | AG190: 51 | AH190: 151 | AI190: 45 | AJ190: 32 | AK190: 51 | AL190: 2004 | AM190: 0.005598371645 | AN190: 1.804916136 | AO190: 189 | AP190: =(AL190/SUM(AL$2:AL$270)*1000000) -> 55.98371645 | AQ190: =LOG(AP190, 2) -> 5.806935358
A191: mir-15b | B191: 45 | C191: 99 | D191: 78 | E191: 26 | F191: 83 | G191: 68 | H191: 21 | I191: 68 | J191: 36 | K191: 29 | L191: 83 | M191: 331 | N191: 12 | O191: 49 | P191: 58 | Q191: 47 | R191: 22 | S191: 54 | T191: 17 | U191: 91 | V191: 13 | W191: 75 | X191: 23 | Y191: 53 | Z191: 36 | AA191: 18 | AB191: 19 | AC191: 23 | AD191: 43 | AE191: 72 | AF191: 15 | AG191: 64 | AH191: 121 | AI191: 29 | AJ191: 29 | AK191: 28 | AL191: 1978 | AM191: 0.005525738081 | AN191: 1.810441874 | AO191: 190 | AP191: =(AL191/SUM(AL$2:AL$270)*1000000) -> 55.25738081 | AQ191: =LOG(AP191, 2) -> 5.788095275
A192: mir-141 | B192: 10 | C192: 93 | D192: 28 | E192: 23 | F192: 60 | G192: 42 | H192: 130 | I192: 31 | J192: 24 | K192: 27 | L192: 126 | M192: 201 | N192: 33 | O192: 36 | P192: 24 | Q192: 16 | R192: 43 | S192: 60 | T192: 1 | U192: 133 | V192: 11 | W192: 37 | X192: 24 | Y192: 64 | Z192: 113 | AA192: 50 | AB192: 10 | AC192: 11 | AD192: 39 | AE192: 57 | AF192: 42 | AG192: 30 | AH192: 206 | AI192: 44 | AJ192: 26 | AK192: 67 | AL192: 1972 | AM192: 0.005508976489 | AN192: 1.81595085 | AO192: 191 | AP192: =(AL192/SUM(AL$2:AL$270)*1000000) -> 55.08976489 | AQ192: =LOG(AP192, 2) -> 5.783712401
A193: mir-451 | B193: 1 | C193: 0 | D193: 1 | E193: 5 | F193: 2 | G193: 23 | H193: 29 | I193: 1 | J193: 2 | K193: 4 | L193: 1 | M193: 3 | N193: 32 | O193: 8 | P193: 2 | Q193: 0 | R193: 2 | S193: 622 | T193: 1 | U193: 0 | V193: 1 | W193: 3 | X193: 13 | Y193: 45 | Z193: 11 | AA193: 10 | AB193: 2 | AC193: 2 | AD193: 14 | AE193: 8 | AF193: 108 | AG193: 0 | AH193: 9 | AI193: 1 | AJ193: 315 | AK193: 642 | AL193: 1923 | AM193: 0.005372090156 | AN193: 1.82132294 | AO193: 192 | AP193: =(AL193/SUM(AL$2:AL$270)*1000000) -> 53.72090156 | AQ193: =LOG(AP193, 2) -> 5.747411612
A194: mir-381 | B194: 16 | C194: 40 | D194: 21 | E194: 65 | F194: 50 | G194: 64 | H194: 222 | I194: 43 | J194: 37 | K194: 50 | L194: 112 | M194: 101 | N194: 27 | O194: 38 | P194: 16 | Q194: 54 | R194: 62 | S194: 48 | T194: 35 | U194: 34 | V194: 8 | W194: 15 | X194: 38 | Y194: 22 | Z194: 158 | AA194: 79 | AB194: 17 | AC194: 23 | AD194: 46 | AE194: 73 | AF194: 19 | AG194: 39 | AH194: 25 | AI194: 23 | AJ194: 76 | AK194: 66 | AL194: 1862 | AM194: 0.00520168064 | AN194: 1.826524621 | AO194: 193 | AP194: =(AL194/SUM(AL$2:AL$270)*1000000) -> 52.0168064 | AQ194: =LOG(AP194, 2) -> 5.700905922
A195: mir-378i | B195: 20 | C195: 43 | D195: 32 | E195: 60 | F195: 62 | G195: 62 | H195: 77 | I195: 53 | J195: 58 | K195: 46 | L195: 83 | M195: 116 | N195: 33 | O195: 60 | P195: 70 | Q195: 38 | R195: 43 | S195: 53 | T195: 27 | U195: 31 | V195: 27 | W195: 32 | X195: 44 | Y195: 57 | Z195: 71 | AA195: 39 | AB195: 20 | AC195: 48 | AD195: 38 | AE195: 88 | AF195: 46 | AG195: 79 | AH195: 79 | AI195: 35 | AJ195: 49 | AK195: 40 | AL195: 1859 | AM195: 0.005193299844 | AN195: 1.831717921 | AO195: 194 | AP195: =(AL195/SUM(AL$2:AL$270)*1000000) -> 51.93299844 | AQ195: =LOG(AP195, 2) -> 5.698579619
A196: mir-7-2 | B196: 26 | C196: 12 | D196: 25 | E196: 48 | F196: 109 | G196: 62 | H196: 58 | I196: 45 | J196: 44 | K196: 63 | L196: 127 | M196: 137 | N196: 20 | O196: 67 | P196: 72 | Q196: 50 | R196: 58 | S196: 45 | T196: 23 | U196: 42 | V196: 18 | W196: 72 | X196: 50 | Y196: 53 | Z196: 67 | AA196: 52 | AB196: 26 | AC196: 67 | AD196: 34 | AE196: 52 | AF196: 16 | AG196: 42 | AH196: 49 | AI196: 24 | AJ196: 70 | AK196: 24 | AL196: 1849 | AM196: 0.005165363858 | AN196: 1.836883285 | AO196: 195 | AP196: =(AL196/SUM(AL$2:AL$270)*1000000) -> 51.65363858 | AQ196: =LOG(AP196, 2) -> 5.690798074
A197: mir-3607 | B197: 40 | C197: 29 | D197: 16 | E197: 36 | F197: 79 | G197: 26 | H197: 48 | I197: 51 | J197: 52 | K197: 83 | L197: 77 | M197: 26 | N197: 11 | O197: 34 | P197: 114 | Q197: 82 | R197: 30 | S197: 32 | T197: 89 | U197: 32 | V197: 66 | W197: 15 | X197: 50 | Y197: 20 | Z197: 65 | AA197: 50 | AB197: 49 | AC197: 67 | AD197: 49 | AE197: 73 | AF197: 13 | AG197: 143 | AH197: 43 | AI197: 21 | AJ197: 112 | AK197: 21 | AL197: 1844 | AM197: 0.005151395865 | AN197: 1.842034681 | AO197: 196 | AP197: =(AL197/SUM(AL$2:AL$270)*1000000) -> 51.51395865 | AQ197: =LOG(AP197, 2) -> 5.686891505
A198: mir-6782-3p | B198: 29 | C198: 183 | D198: 52 | E198: 22 | F198: 40 | G198: 104 | H198: 45 | I198: 88 | J198: 51 | K198: 33 | L198: 82 | M198: 122 | N198: 25 | O198: 63 | P198: 52 | Q198: 30 | R198: 21 | S198: 46 | T198: 16 | U198: 70 | V198: 34 | W198: 33 | X198: 33 | Y198: 83 | Z198: 38 | AA198: 19 | AB198: 26 | AC198: 33 | AD198: 40 | AE198: 40 | AF198: 35 | AG198: 66 | AH198: 56 | AI198: 25 | AJ198: 53 | AK198: 49 | AL198: 1837 | AM198: 0.005131840674 | AN198: 1.847166521 | AO198: 197 | AP198: =(AL198/SUM(AL$2:AL$270)*1000000) -> 51.31840674 | AQ198: =LOG(AP198, 2) -> 5.681404475
A199: mir-652 | B199: 38 | C199: 69 | D199: 42 | E199: 26 | F199: 64 | G199: 58 | H199: 53 | I199: 67 | J199: 47 | K199: 24 | L199: 130 | M199: 126 | N199: 17 | O199: 36 | P199: 81 | Q199: 44 | R199: 41 | S199: 30 | T199: 3 | U199: 62 | V199: 6 | W199: 23 | X199: 33 | Y199: 70 | Z199: 64 | AA199: 23 | AB199: 38 | AC199: 26 | AD199: 35 | AE199: 49 | AF199: 27 | AG199: 83 | AH199: 153 | AI199: 32 | AJ199: 58 | AK199: 27 | AL199: 1805 | AM199: 0.005042445518 | AN199: 1.852208967 | AO199: 198 | AP199: =(AL199/SUM(AL$2:AL$270)*1000000) -> 50.42445518 | AQ199: =LOG(AP199, 2) -> 5.656051686
A200: ENSSSCG00000024853 | B200: 14 | C200: 60 | D200: 33 | E200: 71 | F200: 60 | G200: 24 | H200: 92 | I200: 21 | J200: 21 | K200: 102 | L200: 70 | M200: 35 | N200: 32 | O200: 79 | P200: 78 | Q200: 35 | R200: 94 | S200: 87 | T200: 23 | U200: 27 | V200: 58 | W200: 18 | X200: 27 | Y200: 16 | Z200: 95 | AA200: 61 | AB200: 13 | AC200: 30 | AD200: 29 | AE200: 61 | AF200: 42 | AG200: 24 | AH200: 43 | AI200: 26 | AJ200: 132 | AK200: 43 | AL200: 1776 | AM200: 0.004961431158 | AN200: 1.857170398 | AO200: 199 | AP200: =(AL200/SUM(AL$2:AL$270)*1000000) -> 49.61431158 | AQ200: =LOG(AP200, 2) -> 5.632684431
... 70 more rows
